Organisation Name,Organisation Code,Effective Date,Directorate,Service Category,Service Category URI,Supplier Name,Payment Date,Transaction Number,Net Amount,Irrecoverable VAT,Purpose_of_the_expenditure,Merchant Category,DELETE FIELD
Wyre Council,http://opendatacommunities.org/doc/district-council/wyre,30/10/2022,People and Places,Cultural and Related Services,132A,Marketing Lancashire,16/10/2022,PE144695,1850.00,0.00,STEAM 2021 Wyre - detailed district trend report on the volume and value of tourism in Wyre.,Advertising - General,46100
Wyre Council,http://opendatacommunities.org/doc/district-council/wyre,30/10/2022,Resources,Planning and Development Servs,132C,Daisy Communications LTD,24/10/2022,RS144730,42.92,0.00,Monthly charges for M/E 30/09/22,Advertising - General,46100
Wyre Council,http://opendatacommunities.org/doc/district-council/wyre,30/10/2022,Resources,Planning and Development Servs,132C,Daisy Communications LTD,12/10/2022,RS144038,42.91,0.00,Monthly Charges for w/e  31-08-2036,Advertising - General,46100
Wyre Council,http://opendatacommunities.org/doc/district-council/wyre,30/10/2022,People and Places,Cultural and Related Services,132A,One Smart Cookie Communications Ltd,11/10/2022,PE144581,1279.95,0.00,Filming for tourism video plus extra footage on hard drive,Advertising - General,46100
Wyre Council,http://opendatacommunities.org/doc/district-council/wyre,30/10/2022,Resources,Support Services,135B,Haymarket Media Group,06/10/2022,RS144531,1980.00,0.00,Senior Planning Officer Job Advert - September Special package,Advertising - Recruitment,15200
Wyre Council,http://opendatacommunities.org/doc/district-council/wyre,30/10/2022,People and Places,Planning and Development Servs,132C,National World Publishing Ltd,17/10/2022,PE144702,518.40,0.00,Public notice for Blackpool Gazette and Garstang Weekly News 12/10/22,Advertising - Statutory Notices,46103
Wyre Council,http://opendatacommunities.org/doc/district-council/wyre,30/10/2022,People and Places,Planning and Development Servs,132C,National World Publishing Ltd,17/10/2022,PE144703,177.60,0.00,Public notice for Fleetwood weekly news  12/10/22,Advertising - Statutory Notices,46103
Wyre Council,http://opendatacommunities.org/doc/district-council/wyre,30/10/2022,People and Places,Cultural and Related Services,132A,Arranpaul Audio LTD,26/10/2022,PE144966,1750.00,0.00,Marine Hall staffing,Agency Staff,13000
Wyre Council,http://opendatacommunities.org/doc/district-council/wyre,30/10/2022,People and Places,Support Services,135B,M J Wilkinson,26/10/2022,PE144947,488.40,0.00,hire of labour - payment of invoice 35027,Agency Staff,13000
Wyre Council,http://opendatacommunities.org/doc/district-council/wyre,30/10/2022,People and Places,Support Services,135B,M J Wilkinson,26/10/2022,PE144948,211.20,0.00,hire of Hitachi ZX130 and labour,Agency Staff,13000
Wyre Council,http://opendatacommunities.org/doc/district-council/wyre,30/10/2022,Resources,Housing General Fund,134A,Park Avenue Recruitment Ltd,28/10/2022,RS144408,-1446.12,0.00,07/08/2022 offset PE144312,Agency Staff,13000
Wyre Council,http://opendatacommunities.org/doc/district-council/wyre,30/10/2022,Resources,Housing General Fund,134A,Park Avenue Recruitment Ltd,28/10/2022,PE144312,2892.24,0.00,07/08/2022 Offset PE144408,Agency Staff,13000
Wyre Council,http://opendatacommunities.org/doc/district-council/wyre,30/10/2022,Resources,Housing General Fund,134A,Park Avenue Recruitment Ltd,14/10/2022,RS144675,351.00,0.00,02.10.22 - Invoice 20870,Agency Staff,13000
Wyre Council,http://opendatacommunities.org/doc/district-council/wyre,30/10/2022,Resources,Housing General Fund,134A,Park Avenue Recruitment Ltd,04/10/2022,RS144407,1445.34,0.00,07/08/2022 - hours.,Agency Staff,13000
Wyre Council,http://opendatacommunities.org/doc/district-council/wyre,30/10/2022,Resources,Support Services,135B,Park Avenue Recruitment Ltd,24/10/2022,RS144841,2113.00,0.00,Appointment of an interim Estates Surveyor,Agency Staff,13000
Wyre Council,http://opendatacommunities.org/doc/district-council/wyre,30/10/2022,People and Places,Cultural and Related Services,132A,Quantum Staffing Solutions Ltd,12/10/2022,PE144614,163.36,0.00,Agency staff - Marine Hall w/e 2/10/22,Agency Staff,13000
Wyre Council,http://opendatacommunities.org/doc/district-council/wyre,30/10/2022,People and Places,Cultural and Related Services,132A,Quantum Staffing Solutions Ltd,11/10/2022,PE144574,245.02,0.00,Agency staff w/e 28/8/22,Agency Staff,13000
Wyre Council,http://opendatacommunities.org/doc/district-council/wyre,30/10/2022,People and Places,Cultural and Related Services,132A,Quantum Staffing Solutions Ltd,11/10/2022,PE144573,497.48,0.00,Agency staff w/e 21/8/22,Agency Staff,13000
Wyre Council,http://opendatacommunities.org/doc/district-council/wyre,30/10/2022,Resources,Support Services,135B,Michael Page International Recruitment Limited,13/10/2022,RS144479,616.00,0.00,2 days per week for 6 months plus travel expenses. See ODR dated 29/07/22,Agency Staff,13000
Wyre Council,http://opendatacommunities.org/doc/district-council/wyre,30/10/2022,Resources,Support Services,135B,Michael Page International Recruitment Limited,13/10/2022,RS144478,3600.00,0.00,2 days per week for 6 months plus travel expenses. See ODR dated 29/07/22,Agency Staff,13000
Wyre Council,http://opendatacommunities.org/doc/district-council/wyre,30/10/2022,Resources,Housing General Fund,134A,James Andrews Recruitment Solutions Ltd,21/10/2022,RS144738,1080.00,0.00,10508,Agency Staff,13000
Wyre Council,http://opendatacommunities.org/doc/district-council/wyre,30/10/2022,Resources,Housing General Fund,134A,James Andrews Recruitment Solutions Ltd,28/10/2022,RS144982,1296.00,0.00,24/10/22 - 10508,Agency Staff,13000
Wyre Council,http://opendatacommunities.org/doc/district-council/wyre,30/10/2022,Resources,Housing General Fund,134A,James Andrews Recruitment Solutions Ltd,26/10/2022,RS144746,1332.00,0.00,Invoice 10508,Agency Staff,13000
Wyre Council,http://opendatacommunities.org/doc/district-council/wyre,30/10/2022,Resources,Support Services,135B,Daisy Communications LTD,24/10/2022,RS144730,10.71,0.00,Monthly charges for M/E 30/09/22,Alarm Systems and Security - Annual,25201
Wyre Council,http://opendatacommunities.org/doc/district-council/wyre,30/10/2022,Resources,Support Services,135B,Daisy Communications LTD,12/10/2022,RS144038,10.71,0.00,Monthly Charges for w/e  31-08-2043,Alarm Systems and Security - Annual,25201
Wyre Council,http://opendatacommunities.org/doc/district-council/wyre,30/10/2022,People and Places,Cultural and Related Services,132A,M D Security,07/10/2022,PE144487,49.00,0.00,Marsh Mill: training on fire alarm system and emergency lights,Alarm Systems and Security - Annual,25201
Wyre Council,http://opendatacommunities.org/doc/district-council/wyre,30/10/2022,People and Places,Cultural and Related Services,132A,M D Security,07/10/2022,PE144488,81.00,0.00,New Wave Beach Patrol: replaced 1 x emergency light in boiler room above door to life guard room,Alarm Systems and Security - Responsive,25203
Wyre Council,http://opendatacommunities.org/doc/district-council/wyre,30/10/2022,People and Places,Cultural and Related Services,132A,M D Security,06/10/2022,PE144482,520.00,0.00,Windmill Thornton: To fix power to emergency lights in windmill. To replace 8 x emergency lights due to failing,Alarm Systems and Security - Responsive,25203
Wyre Council,http://opendatacommunities.org/doc/district-council/wyre,30/10/2022,People and Places,Environmental Services,132B,M D Security,25/10/2022,PE143483,54.00,0.00,Garstand Rd Cemetery: call out to fire alarm fault. Replaced battery in detector left working,Alarm Systems and Security - Responsive,25203
Wyre Council,http://opendatacommunities.org/doc/district-council/wyre,30/10/2022,People and Places,Cultural and Related Services,132A,M D Security,06/10/2022,PE144486,103.00,0.00,Marine Hall: replaced and rewired zone 11,Alarm Systems and Security - Responsive,25203
Wyre Council,http://opendatacommunities.org/doc/district-council/wyre,30/10/2022,People and Places,Cultural and Related Services,132A,M D Security,07/10/2022,PE144489,107.00,0.00,"Marine Hall: callout to fault on system. Found PIR and cable to be faulty, rewired, new PIR of new zone left working",Alarm Systems and Security - Responsive,25203
Wyre Council,http://opendatacommunities.org/doc/district-council/wyre,30/10/2022,People and Places,Cultural and Related Services,132A,M D Security,06/10/2022,PE144484,59.00,0.00,Mount Pavilion: replaced batteries on rear doors as per request,Alarm Systems and Security - Responsive,25203
Wyre Council,http://opendatacommunities.org/doc/district-council/wyre,30/10/2022,People and Places,Cultural and Related Services,132A,M D Security,06/10/2022,PE144483,49.00,0.00,Mount Pavilion: call out to faulty sensor bypassed and reconnected replacement,Alarm Systems and Security - Responsive,25203
Wyre Council,http://opendatacommunities.org/doc/district-council/wyre,30/10/2022,People and Places,Planning and Development Servs,132C,M D Security,06/10/2022,PE144485,80.00,0.00,Fleetwood Market: reprogrammed fire alarm system to have a delay from studio to market to help with false alarms and evacuations,Alarm Systems and Security - Responsive,25203
Wyre Council,http://opendatacommunities.org/doc/district-council/wyre,30/10/2022,Finance,Support Services,135B,,03/10/2022,WPST00076356,2384.00,0.00,April 22 -  Apprenticeship Levy,Apprenticeship Levy,17018
Wyre Council,http://opendatacommunities.org/doc/district-council/wyre,30/10/2022,Finance,Support Services,135B,,03/10/2022,WPST00076375,2368.00,0.00,August 22 apprenticeship levy,Apprenticeship Levy,17018
Wyre Council,http://opendatacommunities.org/doc/district-council/wyre,30/10/2022,Finance,Support Services,135B,,03/10/2022,WPST00076370,2385.00,0.00,July 22  Apprenticeship Levy,Apprenticeship Levy,17018
Wyre Council,http://opendatacommunities.org/doc/district-council/wyre,30/10/2022,Finance,Support Services,135B,,03/10/2022,WPST00076365,2396.00,0.00,June 22 - Apprenticeship levy,Apprenticeship Levy,17018
Wyre Council,http://opendatacommunities.org/doc/district-council/wyre,30/10/2022,Resources,Corporate and Democratic Core,131A,PR Chauffeuring Services,06/10/2022,RS144492,661.00,0.00,Cost of mayoral car journeys - August 2022,Attendant Chauffeur Service,44402
Wyre Council,http://opendatacommunities.org/doc/district-council/wyre,30/10/2022,Resources,Corporate and Democratic Core,131A,PR Chauffeuring Services,05/10/2022,RS144493,638.00,0.00,Invoice for September 2022 journeys by mayoral car.,Attendant Chauffeur Service,44402
Wyre Council,http://opendatacommunities.org/doc/district-council/wyre,30/10/2022,Finance,Corporate and Democratic Core,131A,NATWEST BANK,04/10/2022,WPST00076629,962.90,0.00,natwest 30/9,Bank Charges,46008
Wyre Council,http://opendatacommunities.org/doc/district-council/wyre,30/10/2022,People and Places,Environmental Services,132B,AMBER CONSULTANCY (MARPLE) LTD,24/10/2022,PE144893,330.00,0.00,100 x C inspections to be completed prior to 31.3.22 at 50 per inspection total 5000 (plus VAT ),Brexit EHC Costs,46848
Wyre Council,http://opendatacommunities.org/doc/district-council/wyre,30/10/2022,People and Places,Environmental Services,132B,AMBER CONSULTANCY (MARPLE) LTD,04/10/2022,PE144419,1525.00,0.00,29 x food safety inspection cat D: 5 x ceased trading,Brexit EHC Costs,46848
Wyre Council,http://opendatacommunities.org/doc/district-council/wyre,30/10/2022,People and Places,Environmental Services,132B,AMBER CONSULTANCY (MARPLE) LTD,04/10/2022,PE144434,-1525.00,0.00,Internal credit note raised because original invoice received had no VAT.  New VAT invoice has now been processed,Brexit EHC Costs,46848
Wyre Council,http://opendatacommunities.org/doc/district-council/wyre,30/10/2022,People and Places,Environmental Services,132B,AMBER CONSULTANCY (MARPLE) LTD,10/10/2022,PE144548,2560.00,0.00,100 x C inspections to be completed prior to 31.3.22 at 50 per inspection total 5000 (plus VAT ),Brexit EHC Costs,46848
Wyre Council,http://opendatacommunities.org/doc/district-council/wyre,30/10/2022,Resources,Support Services,135B,Zurich Municipal,03/10/2022,RS144318,5934.25,0.00,"Additional premium payable to insurers, in respect of adding the Neptune building onto our property portfolio",Building Insurance Premiums General,29000
Wyre Council,http://opendatacommunities.org/doc/district-council/wyre,30/10/2022,People and Places,Support Services,135B,NSL Services Group,06/10/2022,PE144525,160.97,0.00,Variable Fee Car Park Enforcement by NSL Sep 22,Cash Collection Security Service,42504
Wyre Council,http://opendatacommunities.org/doc/district-council/wyre,30/10/2022,People and Places,Parking Services,133F,NSL Services Group,06/10/2022,PE144525,1786.76,0.00,Variable Fee Car Park Enforcement by NSL Sep 22,Cash Collection Security Service,42504
Wyre Council,http://opendatacommunities.org/doc/district-council/wyre,30/10/2022,People and Places,Planning and Development Servs,132C,NSL Services Group,06/10/2022,PE144525,160.97,0.00,Variable Fee Car Park Enforcement by NSL Sep 22,Cash Collection Security Service,42504
Wyre Council,http://opendatacommunities.org/doc/district-council/wyre,30/10/2022,People and Places,Cultural and Related Services,132A,NSL Services Group,06/10/2022,PE144525,80.48,0.00,Variable Fee Car Park Enforcement by NSL Sep 22,Cash Collection Security Service,42504
Wyre Council,http://opendatacommunities.org/doc/district-council/wyre,30/10/2022,People and Places,Planning and Development Servs,132C,M D Security,12/10/2022,PE144536,2340.00,0.00,Copse Road Maintenance - Depot Monitoring of CCTV Equipment for 1 year,CCTV Running Costs,46831
Wyre Council,http://opendatacommunities.org/doc/district-council/wyre,30/10/2022,People and Places,Environmental Services,132B,N Power LTD,14/10/2022,PE144629,76.21,0.00,Town Centre CCTV electricity charges for 1-30 Sept 22,CCTV Running Costs,46831
Wyre Council,http://opendatacommunities.org/doc/district-council/wyre,30/10/2022,People and Places,Environmental Services,132B,N Power LTD,14/10/2022,PE144629,1.55,0.00,Town Centre CCTV electricity charges for 1-30 Sept 22 ccl,CCTV Running Costs,46831
Wyre Council,http://opendatacommunities.org/doc/district-council/wyre,30/10/2022,People and Places,Environmental Services,132B,N Power LTD,14/10/2022,PE144629,1.55,0.00,Town Centre CCTV electricity charges for 1-30 Sept 22 ccl,CCTV Running Costs,46831
Wyre Council,http://opendatacommunities.org/doc/district-council/wyre,30/10/2022,People and Places,Environmental Services,132B,N Power LTD,14/10/2022,PE144629,115.09,0.00,Town Centre CCTV electricity charges for 1-30 Sept 22,CCTV Running Costs,46831
Wyre Council,http://opendatacommunities.org/doc/district-council/wyre,30/10/2022,People and Places,Environmental Services,132B,N Power LTD,14/10/2022,PE144629,1.55,0.00,Town Centre CCTV electricity charges for 1-30 Sept 22 ccl,CCTV Running Costs,46831
Wyre Council,http://opendatacommunities.org/doc/district-council/wyre,30/10/2022,People and Places,Environmental Services,132B,N Power LTD,14/10/2022,PE144629,11.40,0.00,Town Centre CCTV electricity charges for 1-30 Sept 22,CCTV Running Costs,46831
Wyre Council,http://opendatacommunities.org/doc/district-council/wyre,30/10/2022,Resources,Housing General Fund,134A,Blackpool Council,19/10/2022,RS143603,4589.80,0.00,REDACT,Choice Based Letting Scheme,45234
Wyre Council,http://opendatacommunities.org/doc/district-council/wyre,30/10/2022,People and Places,Cultural and Related Services,132A,Key Engineering & Hygiene Supplies LTD,11/10/2022,PE143881,213.30,0.00,GREEN 1 PLY INTER-FOLD HAND TOWEL 250L X 190W 3600 SHEETS,Cleaning Materials,40501
Wyre Council,http://opendatacommunities.org/doc/district-council/wyre,30/10/2022,People and Places,Cultural and Related Services,132A,Key Engineering & Hygiene Supplies LTD,11/10/2022,PE143881,84.68,0.00,EXTRA STRONG BLACK REFUSE SACK 18X29X39 180G 90LTR (PER 200),Cleaning Materials,40501
Wyre Council,http://opendatacommunities.org/doc/district-council/wyre,30/10/2022,People and Places,Cultural and Related Services,132A,Key Engineering & Hygiene Supplies LTD,11/10/2022,PE143881,21.84,0.00,TOTAL TOUCH BACTERICIDAL CLEANER 750ML,Cleaning Materials,40501
Wyre Council,http://opendatacommunities.org/doc/district-council/wyre,30/10/2022,People and Places,Cultural and Related Services,132A,Key Engineering & Hygiene Supplies LTD,11/10/2022,PE143881,26.04,0.00,Order code A 004A   Evans Cyclone Spray with Bleach 750ml,Cleaning Materials,40501
Wyre Council,http://opendatacommunities.org/doc/district-council/wyre,30/10/2022,People and Places,Cultural and Related Services,132A,Key Engineering & Hygiene Supplies LTD,11/10/2022,PE143881,19.32,0.00,EAUFRESH NON ACIDIC APPLE TOILET CLEANER 1 LTR,Cleaning Materials,40501
Wyre Council,http://opendatacommunities.org/doc/district-council/wyre,30/10/2022,People and Places,Cultural and Related Services,132A,Key Engineering & Hygiene Supplies LTD,11/10/2022,PE143881,0.36,0.00,BLUE STRIP DISH CLOTH EA,Cleaning Materials,40501
Wyre Council,http://opendatacommunities.org/doc/district-council/wyre,30/10/2022,People and Places,Cultural and Related Services,132A,Key Engineering & Hygiene Supplies LTD,11/10/2022,PE143881,0.36,0.00,GREEN STRIPE DISH CLOTH EA,Cleaning Materials,40501
Wyre Council,http://opendatacommunities.org/doc/district-council/wyre,30/10/2022,People and Places,Cultural and Related Services,132A,Key Engineering & Hygiene Supplies LTD,11/10/2022,PE143881,0.36,0.00,RED STRIPE DISH CLOTH EA,Cleaning Materials,40501
Wyre Council,http://opendatacommunities.org/doc/district-council/wyre,30/10/2022,People and Places,Cultural and Related Services,132A,Key Engineering & Hygiene Supplies LTD,11/10/2022,PE143881,5.94,0.00,AUTO GLASSWASH,Cleaning Materials,40501
Wyre Council,http://opendatacommunities.org/doc/district-council/wyre,30/10/2022,People and Places,Cultural and Related Services,132A,Key Engineering & Hygiene Supplies LTD,25/10/2022,PE144894,42.16,0.00,2PLY WHITE TOILET ROLLS 320SHEETS 36PER CASE,Cleaning Materials,40501
Wyre Council,http://opendatacommunities.org/doc/district-council/wyre,30/10/2022,People and Places,Planning and Development Servs,132C,Key Engineering & Hygiene Supplies LTD,21/10/2022,PE144760,42.60,0.00,LUX PEARL HAND/BODY SOAP 5 LTR,Cleaning Materials,40501
Wyre Council,http://opendatacommunities.org/doc/district-council/wyre,30/10/2022,Resources,Support Services,135B,Key Engineering & Hygiene Supplies LTD,24/10/2022,RS144819,17.04,0.00,THICKENED BLEACH 750ML,Cleaning Materials,40501
Wyre Council,http://opendatacommunities.org/doc/district-council/wyre,30/10/2022,Resources,Support Services,135B,Key Engineering & Hygiene Supplies LTD,24/10/2022,RS144819,14.94,0.00,LIQUID SPRAY POLISH 750ML,Cleaning Materials,40501
Wyre Council,http://opendatacommunities.org/doc/district-council/wyre,30/10/2022,Resources,Support Services,135B,Key Engineering & Hygiene Supplies LTD,24/10/2022,RS144819,7.23,0.00,EVANS FOAMING LEMON SOAP 5L,Cleaning Materials,40501
Wyre Council,http://opendatacommunities.org/doc/district-council/wyre,30/10/2022,Resources,Support Services,135B,Key Engineering & Hygiene Supplies LTD,24/10/2022,RS144819,147.30,0.00,BLUE INTERFOLD HAND TOWELS 3600 SHEETS,Cleaning Materials,40501
Wyre Council,http://opendatacommunities.org/doc/district-council/wyre,30/10/2022,Resources,Support Services,135B,Key Engineering & Hygiene Supplies LTD,24/10/2022,RS144819,12.18,0.00,SAFE ZONE PLUS 750ML TRIGGER SPRAY,Cleaning Materials,40501
Wyre Council,http://opendatacommunities.org/doc/district-council/wyre,30/10/2022,Resources,Support Services,135B,Key Engineering & Hygiene Supplies LTD,24/10/2022,RS144819,22.08,0.00,POT POURRI AIR FRESHENER,Cleaning Materials,40501
Wyre Council,http://opendatacommunities.org/doc/district-council/wyre,30/10/2022,Resources,Support Services,135B,Key Engineering & Hygiene Supplies LTD,24/10/2022,RS144819,5.45,0.00,WASHING UP LIQUID 5 LTR,Cleaning Materials,40501
Wyre Council,http://opendatacommunities.org/doc/district-council/wyre,30/10/2022,Resources,Support Services,135B,Key Engineering & Hygiene Supplies LTD,24/10/2022,RS144819,136.08,0.00,WHITE 2PLY LUXURY TOILET ROLL 320 40 PER PACK,Cleaning Materials,40501
Wyre Council,http://opendatacommunities.org/doc/district-council/wyre,30/10/2022,Resources,Support Services,135B,Key Engineering & Hygiene Supplies LTD,24/10/2022,RS144819,31.53,0.00,MEDIUM BLACK REFUSE SACK 18X29X34 100G,Cleaning Materials,40501
Wyre Council,http://opendatacommunities.org/doc/district-council/wyre,30/10/2022,Resources,Support Services,135B,Key Engineering & Hygiene Supplies LTD,24/10/2022,RS144819,11.82,0.00,CLEAR WINDOW CLEANER 750ML,Cleaning Materials,40501
Wyre Council,http://opendatacommunities.org/doc/district-council/wyre,30/10/2022,Resources,Support Services,135B,Key Engineering & Hygiene Supplies LTD,24/10/2022,RS144819,6.67,0.00,SAFE ZONE PLUS  5 LITRE,Cleaning Materials,40501
Wyre Council,http://opendatacommunities.org/doc/district-council/wyre,30/10/2022,Resources,Support Services,135B,Key Engineering & Hygiene Supplies LTD,03/10/2022,RS144384,7.23,0.00,CITRUS FOAM LEMON SOAP 5 LITRE,Cleaning Materials,40501
Wyre Council,http://opendatacommunities.org/doc/district-council/wyre,30/10/2022,Resources,Support Services,135B,Key Engineering & Hygiene Supplies LTD,03/10/2022,RS144384,8.70,0.00,ENSURE ALCOHOL BASED SANITISER 5 LITRE,Cleaning Materials,40501
Wyre Council,http://opendatacommunities.org/doc/district-council/wyre,30/10/2022,Resources,Support Services,135B,Key Engineering & Hygiene Supplies LTD,28/10/2022,RS144995,49.10,0.00,BLUE INTERFOLD HAND TOWELS 3600 SHEETS,Cleaning Materials,40501
Wyre Council,http://opendatacommunities.org/doc/district-council/wyre,30/10/2022,Resources,Support Services,135B,Key Engineering & Hygiene Supplies LTD,28/10/2022,RS144995,8.69,0.00,ENSURE ALCOHOL BASED SANITISER 5 LITRE,Cleaning Materials,40501
Wyre Council,http://opendatacommunities.org/doc/district-council/wyre,30/10/2022,Resources,Support Services,135B,Key Engineering & Hygiene Supplies LTD,25/10/2022,RS143884,17.40,0.00,ENSURE ALCOHOL BASED SANITISER 5 LITRE,Cleaning Materials,40501
Wyre Council,http://opendatacommunities.org/doc/district-council/wyre,30/10/2022,Resources,Support Services,135B,Key Engineering & Hygiene Supplies LTD,25/10/2022,RS143884,5.00,0.00,20 x 15 Bleached Dishcloths,Cleaning Materials,40501
Wyre Council,http://opendatacommunities.org/doc/district-council/wyre,30/10/2022,Resources,Support Services,135B,Key Engineering & Hygiene Supplies LTD,25/10/2022,RS143884,124.74,0.00,3 PLY WHITE TOILET ROLLS (40 PACK),Cleaning Materials,40501
Wyre Council,http://opendatacommunities.org/doc/district-council/wyre,30/10/2022,Resources,Support Services,135B,Key Engineering & Hygiene Supplies LTD,25/10/2022,RS143884,53.91,0.00,Deb Azure Hyfoam Liquid Hand Soap 1ltr cartridge,Cleaning Materials,40501
Wyre Council,http://opendatacommunities.org/doc/district-council/wyre,30/10/2022,Resources,Support Services,135B,Key Engineering & Hygiene Supplies LTD,25/10/2022,RS143884,3.61,0.00,KEYPINE PINE DISINFECTANT 5 LITRE,Cleaning Materials,40501
Wyre Council,http://opendatacommunities.org/doc/district-council/wyre,30/10/2022,Resources,Support Services,135B,Key Engineering & Hygiene Supplies LTD,25/10/2022,RS143884,3.10,0.00,STANDARD YELLOW DUSTER 20 x 18,Cleaning Materials,40501
Wyre Council,http://opendatacommunities.org/doc/district-council/wyre,30/10/2022,Resources,Support Services,135B,Key Engineering & Hygiene Supplies LTD,25/10/2022,RS143884,8.58,0.00,VERSATILE HARD SURFACE CLEANER 5 LITRE,Cleaning Materials,40501
Wyre Council,http://opendatacommunities.org/doc/district-council/wyre,30/10/2022,Resources,Support Services,135B,Key Engineering & Hygiene Supplies LTD,25/10/2022,RS143884,3.60,0.00,RED STRIPE DISHCLOTH,Cleaning Materials,40501
Wyre Council,http://opendatacommunities.org/doc/district-council/wyre,30/10/2022,Resources,Support Services,135B,Key Engineering & Hygiene Supplies LTD,25/10/2022,RS143884,4.67,0.00,BLUE NITRILE POWDER FREE GLOVES MEDIUM,Cleaning Materials,40501
Wyre Council,http://opendatacommunities.org/doc/district-council/wyre,30/10/2022,Resources,Support Services,135B,Key Engineering & Hygiene Supplies LTD,25/10/2022,RS143884,9.34,0.00,NITRILE BLUE POWDER FREE GLOVES SMALL,Cleaning Materials,40501
Wyre Council,http://opendatacommunities.org/doc/district-council/wyre,30/10/2022,Resources,Support Services,135B,Key Engineering & Hygiene Supplies LTD,25/10/2022,RS143884,22.08,0.00,POT POURRI AIR FRESHENER 400ML,Cleaning Materials,40501
Wyre Council,http://opendatacommunities.org/doc/district-council/wyre,30/10/2022,Resources,Support Services,135B,Key Engineering & Hygiene Supplies LTD,25/10/2022,RS143884,16.40,0.00,LARGE TOWEL DISPENSER,Cleaning Materials,40501
Wyre Council,http://opendatacommunities.org/doc/district-council/wyre,30/10/2022,Resources,Support Services,135B,Key Engineering & Hygiene Supplies LTD,25/10/2022,RS143884,14.94,0.00,LIQUID SPRAY POLISH 750ML TRIGGER SPRAY,Cleaning Materials,40501
Wyre Council,http://opendatacommunities.org/doc/district-council/wyre,30/10/2022,Resources,Support Services,135B,Key Engineering & Hygiene Supplies LTD,25/10/2022,RS143884,17.04,0.00,EVANS CYCLONE EXTRA THICK BLEACH 750ML,Cleaning Materials,40501
Wyre Council,http://opendatacommunities.org/doc/district-council/wyre,30/10/2022,Resources,Support Services,135B,Key Engineering & Hygiene Supplies LTD,25/10/2022,RS143884,6.67,0.00,SAFE ZONE PLUS VIRUCIDAL DISINFECTANT 5 LITRE,Cleaning Materials,40501
Wyre Council,http://opendatacommunities.org/doc/district-council/wyre,30/10/2022,Resources,Support Services,135B,Key Engineering & Hygiene Supplies LTD,25/10/2022,RS143884,196.40,0.00,BLUE INTERFOLD HAND TOWELS 3600 SHEETS,Cleaning Materials,40501
Wyre Council,http://opendatacommunities.org/doc/district-council/wyre,30/10/2022,Resources,Support Services,135B,Key Engineering & Hygiene Supplies LTD,25/10/2022,RS143884,19.32,0.00,EAU-FRESH NON ACIDIC POT POURRI TOILET CLEANER/ 1 litre,Cleaning Materials,40501
Wyre Council,http://opendatacommunities.org/doc/district-council/wyre,30/10/2022,Resources,Support Services,135B,Key Engineering & Hygiene Supplies LTD,25/10/2022,RS143884,31.53,0.00,HERON MEDIUM BLACK REFUSE SACK 18X29X33 100G (200),Cleaning Materials,40501
Wyre Council,http://opendatacommunities.org/doc/district-council/wyre,30/10/2022,Resources,Support Services,135B,Key Engineering & Hygiene Supplies LTD,25/10/2022,RS143884,5.45,0.00,KIND DETERGENT 5 LITRE,Cleaning Materials,40501
Wyre Council,http://opendatacommunities.org/doc/district-council/wyre,30/10/2022,Resources,Support Services,135B,Key Engineering & Hygiene Supplies LTD,24/10/2022,RS144819,19.32,0.00,EAU-FRESH NON ACIDIC POT POURRI TOILET CLEANER/ 1 litre,Cleaning Materials,40501
Wyre Council,http://opendatacommunities.org/doc/district-council/wyre,30/10/2022,Resources,Support Services,135B,Key Engineering & Hygiene Supplies LTD,24/10/2022,RS144819,5.00,0.00,20 X 15 BLEACHED DISH CLOTHS EA,Cleaning Materials,40501
Wyre Council,http://opendatacommunities.org/doc/district-council/wyre,30/10/2022,People and Places,Environmental Services,132B,David Ogilvie Enigineering LTD,26/10/2022,PE144719,12180.00,0.00,"Supply 1 no 3.5m diameter bute shelter The price is 6,500 (+VAT) together with its own metal frame with aluminium durbar base for an additional 2,495 (+VAT).Manufactured in steel, hot dip galvanize for weather and corrosion protection, then wet pain",Community Development Initiatives,46600
Wyre Council,http://opendatacommunities.org/doc/district-council/wyre,30/10/2022,People and Places,Environmental Services,132B,David Ogilvie Enigineering LTD,26/10/2022,PE144959,-850.00,0.00,Re; voucher PE144719 bus shelter delivery charged twice,Community Development Initiatives,46600
Wyre Council,http://opendatacommunities.org/doc/district-council/wyre,30/10/2022,People and Places,Environmental Services,132B,Airwave Solutions LTD,04/10/2022,PE142606,171.57,0.00,Fylde Radio 1/4-30/6/22,Community Development Initiatives,46600
Wyre Council,http://opendatacommunities.org/doc/district-council/wyre,30/10/2022,People and Places,Environmental Services,132B,Airwave Solutions LTD,04/10/2022,PE142606,171.58,0.00,Wyre Radio 1/4-30/6/22,Community Development Initiatives,46600
Wyre Council,http://opendatacommunities.org/doc/district-council/wyre,30/10/2022,People and Places,Environmental Services,132B,Airwave Solutions LTD,31/10/2022,PE144662,171.57,0.00,Wyre Airwave Radio 1/10-31/12/22,Community Development Initiatives,46600
Wyre Council,http://opendatacommunities.org/doc/district-council/wyre,30/10/2022,People and Places,Environmental Services,132B,Airwave Solutions LTD,31/10/2022,PE144662,171.58,0.00,Fylde Airwave Radio 1/10-31/12/22,Community Development Initiatives,46600
Wyre Council,http://opendatacommunities.org/doc/district-council/wyre,30/10/2022,People and Places,Environmental Services,132B,Airwave Solutions LTD,11/10/2022,PE144582,171.57,0.00,Fylde Airwave Radio 1/7-30/9/22,Community Development Initiatives,46600
Wyre Council,http://opendatacommunities.org/doc/district-council/wyre,30/10/2022,People and Places,Environmental Services,132B,Airwave Solutions LTD,11/10/2022,PE144582,171.58,0.00,Wyre Airwave Radio - 1/7-30/9/22,Community Development Initiatives,46600
Wyre Council,http://opendatacommunities.org/doc/district-council/wyre,30/10/2022,People and Places,Environmental Services,132B,THE NETWORKING PEOPLE (TNP) LTD,12/10/2022,PE144606,3250.00,0.00,"Investigation of the Redesign of Wyre Council Town Centre CCTV Network as per quotation reference: SQ109675 dated 15.5.2022. Findings to be provided by town i.e.: Fleetwood, Cleveleys, Poulton-le-Fylde and Garstang.  Findings / quotations to be based on a",Community Development Initiatives,46600
Wyre Council,http://opendatacommunities.org/doc/district-council/wyre,30/10/2022,Resources,Support Services,135B,Phoenix Software LTD,04/10/2022,RS144436,1494.50,0.00,x10 Splashtop - SOS Basic Single Licence - 1 Year Subscription (ESD) (Non- 10cancellable/returnable) - License,Comp Hardware Purchases,43500
Wyre Council,http://opendatacommunities.org/doc/district-council/wyre,30/10/2022,Resources,Support Services,135B,CCS MEDIA LTD,07/10/2022,RS143510,179.60,0.00,TAR300 Targus TAR300 notebook case 39.6 cm (15.6``) Briefcase Black,Comp Hardware Purchases,43500
Wyre Council,http://opendatacommunities.org/doc/district-council/wyre,30/10/2022,Resources,Support Services,135B,CCS MEDIA LTD,04/10/2022,RS144072,89.10,0.00,Targus TAR300 notebook case 39.6 cm (15.6``) Briefcase Black,Comp Hardware Purchases,43500
Wyre Council,http://opendatacommunities.org/doc/district-council/wyre,30/10/2022,Resources,Support Services,135B,CCS MEDIA LTD,24/10/2022,RS144834,1303.11,0.00,"RS1221RP+ - Synology-RS1221RP+ Synology RackStation  NAS/storage server Rack (2U) Ethernet LAN Black V1500B2U, AMD Ryzen V1500B (4x 2.2GHz), 4GB DDR4, 8x 2.5``/3.5`` SATA, 4x RJ-45, 2x USB 3.2 Gen 1, 1x eSATA, 350W",Comp Hardware Purchases,43500
Wyre Council,http://opendatacommunities.org/doc/district-council/wyre,30/10/2022,Resources,Support Services,135B,CCS MEDIA LTD,24/10/2022,RS144834,200.48,0.00,"E10M20-T1 - Synology-E10M20-T1 Synology  interface cards/adapter Internal PCIePCIe 3.0 x8, PCIe NVMe, LAN, 10 Gbps, 200.05 x 71.75 x 17.7 mm",Comp Hardware Purchases,43500
Wyre Council,http://opendatacommunities.org/doc/district-council/wyre,30/10/2022,Resources,Support Services,135B,CCS MEDIA LTD,24/10/2022,RS144834,48.92,0.00,CMA-01 - Synology-CMA-01 Synology  rack accessory Cable management panelCable Management Arm CMA-01,Comp Hardware Purchases,43500
Wyre Council,http://opendatacommunities.org/doc/district-council/wyre,30/10/2022,Resources,Support Services,135B,CCS MEDIA LTD,24/10/2022,RS144834,273.36,0.00,"SNV3510-400G - Synology-SNV3510-400G Synology SNV3510 M.2 400 GB PCI Express 3.0 NVMeSNV3510, 400 GB, M.2 22110, NVMe PCIe 3.0 x4, 3000 MB/s, 750 MB/s, 4.5 mm x 22 mm x 110 mm",Comp Hardware Purchases,43500
Wyre Council,http://opendatacommunities.org/doc/district-council/wyre,30/10/2022,Resources,Support Services,135B,CCS MEDIA LTD,24/10/2022,RS144827,71.03,0.00,RKS-02 - Synology-RKS-02 Synology  rack accessory Rack rail kitRail Kit RKS-02,Comp Hardware Purchases,43500
Wyre Council,http://opendatacommunities.org/doc/district-council/wyre,30/10/2022,Resources,Support Services,135B,CCS MEDIA LTD,19/10/2022,RS144634,6780.00,0.00,HP 450 G9 i5-1235U Notebook 39.6 cm (15.6``) Full HD Intel Core i5 8GB DDR4-SDRAM 256 GB SSD Wi-Fi 6E (802.11ax) Windows 10 ProSilver (United Kingdom),Comp Hardware Purchases,43500
Wyre Council,http://opendatacommunities.org/doc/district-council/wyre,30/10/2022,Resources,Support Services,135B,CCS MEDIA LTD,19/10/2022,RS144071,563.20,0.00,HP 3 year Next Business Day Response Onsite Notebook Hardware Support,Comp Hardware Purchases,43500
Wyre Council,http://opendatacommunities.org/doc/district-council/wyre,30/10/2022,Resources,Support Services,135B,CCS MEDIA LTD,25/10/2022,RS144925,967.32,0.00,"ST4000NT001 - Seagate-ST4000NT001 Seagate IronWolf Pro  internal hard drive 3.5`` 4000 GB4 TB, SATA 6Gb/s, 26.11 x 101.85 x 146.99 mm, 650 g",Comp Hardware Purchases,43500
Wyre Council,http://opendatacommunities.org/doc/district-council/wyre,30/10/2022,Resources,Support Services,135B,Amazon Business,06/10/2022,RS143640,40.82,0.00,"AJPARTS UK New Compatible with LP156WFC SPM1, NV156FHM-N4H, NV156FHM-N4L, LP156WFC(SP)(M1) Laptop Screen 15.6? Narrow Bezel Slim LED LCD 1920 x 1080 FHD IPS Display 30 Pin Matte Panel Non TouchAJPARTS UK New Compatible with LP156WFC SPM1, NV156FHM-N4H, NV",Comp Hardware Purchases,43500
Wyre Council,http://opendatacommunities.org/doc/district-council/wyre,30/10/2022,Resources,Support Services,135B,Amazon Business,28/10/2022,RS144566,406.62,0.00,"ASUS ProArt Display PA279CV Professional Monitor - 27-inch, IPS, 4K UHD (3840 x 2160), 100% sRGB, 100% Rec. 709, Color Accuracy &#916;E < 2, Calman Verified, USB-C, ProArt Preset, ProArt Palette.",Comp Hardware Purchases,43500
Wyre Council,http://opendatacommunities.org/doc/district-council/wyre,30/10/2022,Resources,Support Services,135B,Amazon Business,28/10/2022,RS144567,8.32,0.00,"Basesailor 8K 60Hz DisplayPort Cable 2M (2-Pack),DP 1.4 Male Ultra High Speed Cord for Laptop/PC/TV/Gaming Monitor,Support HBR3 Bandwidth of 32.4Gbps,4K@144Hz,2K@165Hz,1080P@240Hz(DP 1.2 Compatible).",Comp Hardware Purchases,43500
Wyre Council,http://opendatacommunities.org/doc/district-council/wyre,30/10/2022,Resources,Support Services,135B,Amazon Business,28/10/2022,RS144544,51.70,0.00,Kingston FURY Beast 16GB (2x8GB) 3200MHz DDR4 CL16.,Comp Hardware Purchases,43500
Wyre Council,http://opendatacommunities.org/doc/district-council/wyre,30/10/2022,Resources,Support Services,135B,Amazon Business,28/10/2022,RS144543,76.23,0.00,"Fractal Design Meshify C - Compact Mid Tower Computer Case - Open ATX Layout- High Performance Airflow/Cooling - 2x Fans included - PSU Shroud - Modular interior,Water-cooling ready - USB3.0 - BlackFractal Design Meshify C - Compact Mid Tower Computer Cas",Comp Hardware Purchases,43500
Wyre Council,http://opendatacommunities.org/doc/district-council/wyre,30/10/2022,Resources,Support Services,135B,Amazon Business,28/10/2022,RS144542,56.64,0.00,NETGEAR 5 Port Gigabit Network Switch GS305 | Ethernet Switch | Ethernet Splitter | Plug-and-Play | Silent Operation | Desktop or Wall Mount.,Comp Hardware Purchases,43500
Wyre Council,http://opendatacommunities.org/doc/district-council/wyre,30/10/2022,Resources,Support Services,135B,Amazon Business,28/10/2022,RS144542,29.98,0.00,NETGEAR 8 Port Gigabit Network Switch GS308 | Ethernet Switch | Ethernet Splitter | Plug-and-Play | Silent Operation | Desktop or Wall Mount,Comp Hardware Purchases,43500
Wyre Council,http://opendatacommunities.org/doc/district-council/wyre,30/10/2022,Resources,Support Services,135B,Amazon Business,28/10/2022,RS144533,63.32,0.00,"be quiet! BK022 Dark Rock Pro 4, 250W TDP, CPU cooler, Black.",Comp Hardware Purchases,43500
Wyre Council,http://opendatacommunities.org/doc/district-council/wyre,30/10/2022,Resources,Support Services,135B,Amazon Business,28/10/2022,RS144532,441.67,0.00,Gigabyte GeForce RTX 3060 Ti GAMING OC PRO 8GB V3 LHR Graphics Card,Comp Hardware Purchases,43500
Wyre Council,http://opendatacommunities.org/doc/district-council/wyre,30/10/2022,Resources,Support Services,135B,Amazon Business,28/10/2022,RS144425,255.40,0.00,"Intel Core i5-12600K 12th Generation Desktop Processor (Base Clock: 3.7GHz Tuboboost: 4.9GHz, 6 cores, LGA1700, RAM DDR4 and DDR5 up to 128GB) BX8071512600K, Black.",Comp Hardware Purchases,43500
Wyre Council,http://opendatacommunities.org/doc/district-council/wyre,30/10/2022,Resources,Support Services,135B,Amazon Business,27/10/2022,RS144988,29.98,0.00,"Inateck Keyboard Case for iPad 2021(9th Gen)/2020(8th Gen)/iPad 2019(7th Gen) 10.2 Inch, iPad Air 3, iPad Pro 10.5, with Magnetic Detachable Keyboard, UK Layout, KB02012,Dark Gray.",Comp Hardware Purchases,43500
Wyre Council,http://opendatacommunities.org/doc/district-council/wyre,30/10/2022,Resources,Support Services,135B,Amazon Business,27/10/2022,RS144989,64.70,0.00,"Rankie DisplayPort (DP) to DVI Cable, 1080P Full HD, 1.8 m, Black.",Comp Hardware Purchases,43500
Wyre Council,http://opendatacommunities.org/doc/district-council/wyre,30/10/2022,Resources,Support Services,135B,Amazon Business,05/10/2022,RS144459,35.95,0.00,"USB Number Keyboard, Portable Mini Numeric Keypad for Laptop Desktop Computer PC, Surface Pro, Notebook, 19 Key.",Comp Hardware Purchases,43500
Wyre Council,http://opendatacommunities.org/doc/district-council/wyre,30/10/2022,Resources,Support Services,135B,Amazon Business,05/10/2022,RS144461,16.20,0.00,"EasyULT DisplayPort (DP) to HDMI Adapter, DP to HDMI Converter Male to Female, 1080P 4K Resolution Converter, for Lenovo, Dell, HP, Asus Laptop/Desktop, Monitor, TV, Graphics Card.",Comp Hardware Purchases,43500
Wyre Council,http://opendatacommunities.org/doc/district-council/wyre,30/10/2022,Resources,Support Services,135B,Amazon Business,05/10/2022,RS144460,28.76,0.00,"USB Number Keyboard, Portable Mini Numeric Keypad for Laptop Desktop Computer PC, Surface Pro, Notebook, 19 Key.",Comp Hardware Purchases,43500
Wyre Council,http://opendatacommunities.org/doc/district-council/wyre,30/10/2022,Resources,Support Services,135B,EPOS NOW LTD,21/10/2022,RS144722,647.93,0.00,x6 C15S/W Pro Customer Display (Compatible with C15S and C15W models only),Comp Hardware Purchases,43500
Wyre Council,http://opendatacommunities.org/doc/district-council/wyre,30/10/2022,Resources,Support Services,135B,EPOS NOW LTD,21/10/2022,RS144722,11.39,0.00,DPD Standard Delivery,Comp Hardware Purchases,43500
Wyre Council,http://opendatacommunities.org/doc/district-council/wyre,30/10/2022,Resources,Support Services,135B,THE NETWORKING PEOPLE (TNP) LTD,17/10/2022,RS144701,725.00,0.00,PS Day: Wireless AP & Cabling Survey,Computer Equipment Maintenance,43600
Wyre Council,http://opendatacommunities.org/doc/district-council/wyre,30/10/2022,Resources,Support Services,135B,Amazon Business,05/10/2022,RS144374,52.64,0.00,"Samsung galaxy A32 5G Phone Case,Folmecket With Screen Protector 360 Degree Rotating Metal Ring Shock Absorption Reinforced Corner TPU for Galaxy A32 5G 6.5`` (A32 5G Black)",Computer Stationery and Consumables,43501
Wyre Council,http://opendatacommunities.org/doc/district-council/wyre,30/10/2022,Resources,Support Services,135B,Amazon Business,06/10/2022,RS143641,3.74,0.00,"Mobile Stuff For Samsung Galaxy A20s Screen Protector, [2 PACK] Tempered Glass [9H Hardness] [Bubble Free] [Case Friendly] Screen Protector for Galaxy A20s (6.5``).",Computer Stationery and Consumables,43501
Wyre Council,http://opendatacommunities.org/doc/district-council/wyre,30/10/2022,Resources,Support Services,135B,Amazon Business,28/10/2022,RS144569,6.66,0.00,"MINTHE? Blue Yeti Mic Cover, Yeti Pro, MXL, Audio Technica and Other Large Microphones, Microphone Cover Foam, Microphone Filter, Mic Foam Cover, Microphone Muffler, Mic Filter.",Computer Stationery and Consumables,43501
Wyre Council,http://opendatacommunities.org/doc/district-council/wyre,30/10/2022,People and Places,Planning and Development Servs,132C,Kings Chambers,06/10/2022,PE144524,4850.00,0.00,Legal advice for the local plan,Consultants Fees,42612
Wyre Council,http://opendatacommunities.org/doc/district-council/wyre,30/10/2022,People and Places,Support Services,135B,Knight Kavanagh & Page,31/10/2022,PE145017,14520.00,0.00,"Wyre Council has commissioned KKP to undertake the following pieces of work for the borough

	A (Sport England specified) Strategic Options Planning Guidance  SOPG process	Physical Activity and Sport Strategy	Assessing Needs & Opportunities Guidance,",Consultants Fees,42612
Wyre Council,http://opendatacommunities.org/doc/district-council/wyre,30/10/2022,People and Places,Planning and Development Servs,132C,The Planning Inspectorate,13/10/2022,PE144664,3723.75,0.00,Wyre Local Plan Partial Review Examination,Consultants Fees,42612
Wyre Council,http://opendatacommunities.org/doc/district-council/wyre,30/10/2022,People and Places,Planning and Development Servs,132C,Keppie Massie,12/10/2022,PE144613,2000.00,0.00,"Review of viability assessment for Land To South Of Copp Lane, Great Eccleston 21/01394/FUL",Consultants Fees,42612
Wyre Council,http://opendatacommunities.org/doc/district-council/wyre,30/10/2022,Resources,Support Services,135B,Greenhalgh Kerr,26/10/2022,RS144967,741.00,0.00,professional charges,Consultants Fees,42612
Wyre Council,http://opendatacommunities.org/doc/district-council/wyre,30/10/2022,Resources,Support Services,135B,Coolspirit LTD,07/10/2022,RS144545,2385.00,0.00,Commvault Health Check : x2 Day Professional Services : x1 day Information Gathering & Analysis : x1 Day Documentation Write up:- COOPSPM1 - COOLSPIRiT Professional Services & Project Management Package (Daily),Consultants Fees,42612
Wyre Council,http://opendatacommunities.org/doc/district-council/wyre,30/10/2022,People and Places,Planning and Development Servs,132C,Purcell Architecture Limited,03/10/2022,PE144069,-1841.25,0.00,Fleetwood HAZ - Store 21 Phase 1. Credit note for overcharge of Sub-con fees as per email with D Wooliscroft,Consultants Fees,42612
Wyre Council,http://opendatacommunities.org/doc/district-council/wyre,30/10/2022,Resources,Support Services,135B,NWA Social and Market Research Ltd,04/10/2022,RS144429,5275.00,0.00,Life In Wyre survey 2 part payment,Consultants Fees,42612
Wyre Council,http://opendatacommunities.org/doc/district-council/wyre,30/10/2022,Resources,"Cultural, Environ and Planning",137B,National World Publishing Ltd,28/10/2022,RS144998,1111.80,0.00,Planning Notices17 x 3 2 inserts  Colour - Black 26/10/22 - 02/11/2022 Blackpool GazetteFleetwood Weekly NewsGarstang Courier2 x online,Consultants Fees (New CCR),04022
Wyre Council,http://opendatacommunities.org/doc/district-council/wyre,30/10/2022,People and Places,"Cultural, Environ and Planning",137B,Halcrow Group LTD,21/10/2022,PE144729,2856.83,0.00,Current approved order based on agreed additional work. Authorised by Carl Green,Consultants Fees (New CCR),04022
Wyre Council,http://opendatacommunities.org/doc/district-council/wyre,30/10/2022,People and Places,"Cultural, Environ and Planning",137B,Vivid Resourcing Ltd,12/10/2022,PE144610,3395.00,0.00,Fleetwood Market Project,Consultants Fees (New CCR),04022
Wyre Council,http://opendatacommunities.org/doc/district-council/wyre,30/10/2022,People and Places,"Cultural, Environ and Planning",137B,Vivid Resourcing Ltd,12/10/2022,PE144609,5335.00,0.00,Fleetwood Market Project,Consultants Fees (New CCR),04022
Wyre Council,http://opendatacommunities.org/doc/district-council/wyre,30/10/2022,People and Places,"Cultural, Environ and Planning",137B,Purcell Architecture Limited,05/10/2022,PE144070,4954.14,0.00,Fleetwood Market HAZ,Consultants Fees (New CCR),04022
Wyre Council,http://opendatacommunities.org/doc/district-council/wyre,30/10/2022,People and Places,"Cultural, Environ and Planning",137B,Susannah Bleakley Consulting,11/10/2022,PE144551,3580.00,0.00,ECO-CoBS Project,Consultants Fees (New CCR),04022
Wyre Council,http://opendatacommunities.org/doc/district-council/wyre,30/10/2022,People and Places,"Cultural, Environ and Planning",137B,Susannah Bleakley Consulting,11/10/2022,PE144551,42.75,0.00,Return travel to Poulton,Consultants Fees (New CCR),04022
Wyre Council,http://opendatacommunities.org/doc/district-council/wyre,30/10/2022,People and Places,"Cultural, Environ and Planning",137B,Sandberg LLP,05/10/2022,PE142092,900.00,0.00,"Fleetwood Market  HAZ project - Roof Truss Sampling  Please carry out metallographic examination of approx 6 samples from metal trusses from Fleetwood Market, all in accordance with your in house documented procedures M/13/3/0 all as per your Budget quota",Consultants Fees (New CCR),04022
Wyre Council,http://opendatacommunities.org/doc/district-council/wyre,30/10/2022,People and Places,"Cultural, Environ and Planning",137B,Sandberg LLP,05/10/2022,PE142097,600.00,0.00,"Fleetwood Market  HAZ project ? Roof Truss Sampling ? Second Set of Samples  Please carry out further metallographic examination of 4 samples from metal trusses from Fleetwood Market, all in accordance with your in house documented procedures M/13/3/0 all",Consultants Fees (New CCR),04022
Wyre Council,http://opendatacommunities.org/doc/district-council/wyre,30/10/2022,People and Places,"Cultural, Environ and Planning",137B,Glennerster Consulting Limited,10/10/2022,PE144552,3120.00,0.00,"FAO Mark Glennerster Glennerster Consulting Ltd. Wyre Beach Management Scheme ? assist in developing value engineering options for the groyne, existing structures interface as per your letter and quote 12th August 2022. Total 3,120.00",Consultants Fees (New CCR),04022
Wyre Council,http://opendatacommunities.org/doc/district-council/wyre,30/10/2022,Resources,Central Services to the Public,131C,Blackpool Council,07/10/2022,RS144304,785.08,0.00,Covid Vaccination van august 2022. 30174174,Contain Outbreak Management Fund,46615
Wyre Council,http://opendatacommunities.org/doc/district-council/wyre,30/10/2022,Resources,Central Services to the Public,131C,Blackpool Council,07/10/2022,RS144304,310.92,0.00,Covid Vaccination Van Charges - 30173315.,Contain Outbreak Management Fund,46615
Wyre Council,http://opendatacommunities.org/doc/district-council/wyre,30/10/2022,Resources,Central Services to the Public,131C,Blackpool Council,07/10/2022,RS144304,717.06,0.00,Covid Vaccination Van Charges - 30173315.,Contain Outbreak Management Fund,46615
Wyre Council,http://opendatacommunities.org/doc/district-council/wyre,30/10/2022,Resources,Central Services to the Public,131C,Blackpool Council,31/10/2022,RS145008,1096.00,0.00,Covid Vaccination - 10.09.22 - 1036175,Contain Outbreak Management Fund,46615
Wyre Council,http://opendatacommunities.org/doc/district-council/wyre,30/10/2022,Resources,Central Services to the Public,131C,Blackpool Council,31/10/2022,RS145008,482.88,0.00,Covid Vaccination - 10.09.22 - 1036175 vaccine guarantee charges,Contain Outbreak Management Fund,46615
Wyre Council,http://opendatacommunities.org/doc/district-council/wyre,30/10/2022,People and Places,Central Services to the Public,131C,Tina Warren,17/10/2022,PE144698,900.00,0.00,"Creative Wellbeing sessions at Market House Studios, Sept - Nov 2022Payment 1 of 2 - 900",Contain Outbreak Management Fund,46615
Wyre Council,http://opendatacommunities.org/doc/district-council/wyre,30/10/2022,People and Places,"Cultural, Environ and Planning",137B,Kompan  LTD,03/10/2022,PE144394,4319.40,0.00,Supply and installation of swing and associated surfacing Winmarleigh as per Quotation SQ271820-2,Contract (New CCR),04020
Wyre Council,http://opendatacommunities.org/doc/district-council/wyre,30/10/2022,People and Places,"Cultural, Environ and Planning",137B,RAPID RETAIL LTD,27/10/2022,PE144397,250.00,0.00,Rental of 2 x Mobile Merchandising Units April 22 to March 23,Contract (New CCR),04020
Wyre Council,http://opendatacommunities.org/doc/district-council/wyre,30/10/2022,People and Places,"Cultural, Environ and Planning",137B,RAPID RETAIL LTD,27/10/2022,PE144597,250.00,0.00,Rental of 2 x Mobile Merchandising Units April 22 to March 23,Contract (New CCR),04020
Wyre Council,http://opendatacommunities.org/doc/district-council/wyre,30/10/2022,Resources,"Cultural, Environ and Planning",137B,VODAFONE LIMITED,03/10/2022,RS143932,24.00,0.00,"Mobile Phone Charges, invoice dated August",Contract (New CCR),04020
Wyre Council,http://opendatacommunities.org/doc/district-council/wyre,30/10/2022,People and Places,"Cultural, Environ and Planning",137B,WILLIAM PYE LIMITED,03/10/2022,PE143602,2991.83,0.00,CONFIRMATION ORDER - KEELY JONES tarmac works to outside market as part of the CCF5 outside market project.,Contract (New CCR),04020
Wyre Council,http://opendatacommunities.org/doc/district-council/wyre,30/10/2022,People and Places,"Cultural, Environ and Planning",137B,Balfour Beatty Civil Engineering Ltd,18/10/2022,PE144539,19053.89,0.00,"FAO Chloe Sumner Balfour Beatty Civil Engineering Ltd Chaddock Lane  Worsley Manchester M28 1XY  Tel, 0161 638 0800 Chloe.Sumner@balfourbeatty.com   Wyre Beach Management Scheme Phase 2 - Preconstruction Works.  Cost 1,313,701.70",Contract (New CCR),04020
Wyre Council,http://opendatacommunities.org/doc/district-council/wyre,30/10/2022,People and Places,"Cultural, Environ and Planning",137B,Balfour Beatty Civil Engineering Ltd,18/10/2022,PE144538,150558.58,0.00,Wyre Beach Management Scheme Phase 1 - Preconstruction Works.  FAO Chloe Sumner Balfour Beatty Civil Engineering Ltd Chaddock Lane  Worsley Manchester M28 1XY,Contract (New CCR),04020
Wyre Council,http://opendatacommunities.org/doc/district-council/wyre,30/10/2022,Resources,Housing General Fund,134A,Airey Consultancy Services,21/10/2022,RS144770,500.00,0.00,Concil reduction scheme annual update service 2023,Corporate and Professional Subscriptions,45300
Wyre Council,http://opendatacommunities.org/doc/district-council/wyre,30/10/2022,Resources,Cultural and Related Services,132A,VODAFONE LIMITED,03/10/2022,RS143932,24.00,0.00,"Mobile Phone Charges, invoice dated August",Corporate and Professional Subscriptions,45300
Wyre Council,http://opendatacommunities.org/doc/district-council/wyre,30/10/2022,Resources,Support Services,135B,BLACKPOOL AND FYLDE COLLEGE,19/10/2022,RS144706,210.00,0.00,Invoice re-processed due to incorrect VAT being used on original invoice,Corporate Training - Health and Safety,17002
Wyre Council,http://opendatacommunities.org/doc/district-council/wyre,30/10/2022,Resources,Support Services,135B,BLACKPOOL AND FYLDE COLLEGE,12/10/2022,RS144506,190.00,0.00,To deliver 2 day First Aid Refresher Course for Gareth Bates 28th and 29th September 2022,Corporate Training - Health and Safety,17002
Wyre Council,http://opendatacommunities.org/doc/district-council/wyre,30/10/2022,Resources,Support Services,135B,BLACKPOOL AND FYLDE COLLEGE,13/10/2022,RS144494,215.00,0.00,To deliver 3 day First Aid at Work course 14th September - 16th September for Neil Catterson - duplicate - credit received,Corporate Training - Health and Safety,17002
Wyre Council,http://opendatacommunities.org/doc/district-council/wyre,30/10/2022,Resources,Support Services,135B,Bill Rogerson Safety Services LTD,25/10/2022,RS142458,400.00,0.00,"To deliver Working at Height, Ladders and Steps at your premises upto 10 delegates each 28th June x 1 8.30 - 11.30                  x 1 12.30 - 3.30",Corporate Training - Health and Safety,17002
Wyre Council,http://opendatacommunities.org/doc/district-council/wyre,30/10/2022,Resources,Support Services,135B,Bill Rogerson Safety Services LTD,04/10/2022,RS144087,200.00,0.00,"To deliver Working at Height, Ladders and  Steps training 14th September 12.30 - 3.30 at your  premises > 10 delegates",Corporate Training - Health and Safety,17002
Wyre Council,http://opendatacommunities.org/doc/district-council/wyre,30/10/2022,Resources,Support Services,135B,Bill Rogerson Safety Services LTD,04/10/2022,RS144086,200.00,0.00,"To deliver Working at Height, Ladders and Steps training 14th September 8.30 - 11.30 at your premises > 10 delegates",Corporate Training - Health and Safety,17002
Wyre Council,http://opendatacommunities.org/doc/district-council/wyre,30/10/2022,Resources,Support Services,135B,BRADLEY ENVIRONMENTAL CONSULTANTS LTD,25/10/2022,RS144924,870.11,0.00,NL Refresher Training 18.10.22 inclusive of travel,Corporate Training - Health and Safety,17002
Wyre Council,http://opendatacommunities.org/doc/district-council/wyre,30/10/2022,Finance,Current Assets,130B,,11/10/2022,WPST00077540,18371.69,0.00,ctax refunds 7/10,Council Tax Refunds,01100
Wyre Council,http://opendatacommunities.org/doc/district-council/wyre,30/10/2022,Finance,Current Assets,130B,,19/10/2022,WPST00079698,31833.31,0.00,ctax refunds 14/10,Council Tax Refunds,01100
Wyre Council,http://opendatacommunities.org/doc/district-council/wyre,30/10/2022,Finance,Current Assets,130B,,26/10/2022,WPST00080402,27215.63,0.00,ctax refunds,Council Tax Refunds,01100
Wyre Council,http://opendatacommunities.org/doc/district-council/wyre,30/10/2022,People and Places,Cultural and Related Services,132A,Tina Dempsey,14/10/2022,PE144676,500.00,0.00,For the preparation and delivery of an art workshop to support the Suicide Awareness walk and event in the Marine Gardens on Friday 9th September.  Artist to be on site between 6pm and 9pm.Fee including materials 500,Creative People and Places Contribution,45227
Wyre Council,http://opendatacommunities.org/doc/district-council/wyre,30/10/2022,People and Places,Cultural and Related Services,132A,Gambolling Arena Theatre Company,31/10/2022,PE145020,1300.00,0.00,"TO PROVIDE - TWITCHY WITCH PERFORMANCES 5 x PERFORMANCES PER DAY 

Over Wyre and Cleveleys - Venues to be confirmed.
Saturday 22nd October and Sunday 23rd October
FEE - 1,300",Creative People and Places Contribution,45227
Wyre Council,http://opendatacommunities.org/doc/district-council/wyre,30/10/2022,People and Places,Cultural and Related Services,132A,Creature Events,27/10/2022,PE144987,1275.00,0.00,50% remaining balance for Transformers Hire for Fleetwood Market Halloween Event,Creative People and Places Contribution,45227
Wyre Council,http://opendatacommunities.org/doc/district-council/wyre,30/10/2022,People and Places,Environmental Services,132B,EK Motors Factors LTD,24/10/2022,PE144803,19.60,0.00,Parts,Daywork Materials (Excl.Tyres),30507
Wyre Council,http://opendatacommunities.org/doc/district-council/wyre,30/10/2022,People and Places,Environmental Services,132B,EK Motors Factors LTD,24/10/2022,PE144804,5.91,0.00,Parts,Daywork Materials (Excl.Tyres),30507
Wyre Council,http://opendatacommunities.org/doc/district-council/wyre,30/10/2022,People and Places,Environmental Services,132B,EK Motors Factors LTD,24/10/2022,PE144789,17.11,0.00,Parts,Daywork Materials (Excl.Tyres),30507
Wyre Council,http://opendatacommunities.org/doc/district-council/wyre,30/10/2022,People and Places,Environmental Services,132B,EK Motors Factors LTD,24/10/2022,PE144793,222.71,0.00,Parts,Daywork Materials (Excl.Tyres),30507
Wyre Council,http://opendatacommunities.org/doc/district-council/wyre,30/10/2022,People and Places,Environmental Services,132B,EK Motors Factors LTD,24/10/2022,PE144792,15.97,0.00,Parts,Daywork Materials (Excl.Tyres),30507
Wyre Council,http://opendatacommunities.org/doc/district-council/wyre,30/10/2022,People and Places,Environmental Services,132B,EK Motors Factors LTD,24/10/2022,PE144795,14.91,0.00,Parts,Daywork Materials (Excl.Tyres),30507
Wyre Council,http://opendatacommunities.org/doc/district-council/wyre,30/10/2022,People and Places,Environmental Services,132B,EK Motors Factors LTD,24/10/2022,PE144794,14.91,0.00,Parts,Daywork Materials (Excl.Tyres),30507
Wyre Council,http://opendatacommunities.org/doc/district-council/wyre,30/10/2022,People and Places,Environmental Services,132B,EK Motors Factors LTD,24/10/2022,PE144801,16.36,0.00,Parts,Daywork Materials (Excl.Tyres),30507
Wyre Council,http://opendatacommunities.org/doc/district-council/wyre,30/10/2022,People and Places,Environmental Services,132B,EK Motors Factors LTD,24/10/2022,PE144800,12.82,0.00,Parts,Daywork Materials (Excl.Tyres),30507
Wyre Council,http://opendatacommunities.org/doc/district-council/wyre,30/10/2022,People and Places,Environmental Services,132B,EK Motors Factors LTD,24/10/2022,PE144802,60.50,0.00,Parts,Daywork Materials (Excl.Tyres),30507
Wyre Council,http://opendatacommunities.org/doc/district-council/wyre,30/10/2022,People and Places,Support Services,135B,EK Motors Factors LTD,21/10/2022,PE144777,16.36,0.00,Parts,Daywork Materials (Excl.Tyres),30507
Wyre Council,http://opendatacommunities.org/doc/district-council/wyre,30/10/2022,People and Places,Environmental Services,132B,EK Motors Factors LTD,24/10/2022,PE144799,17.03,0.00,Parts,Daywork Materials (Excl.Tyres),30507
Wyre Council,http://opendatacommunities.org/doc/district-council/wyre,30/10/2022,People and Places,Environmental Services,132B,EK Motors Factors LTD,24/10/2022,PE144798,23.84,0.00,Parts,Daywork Materials (Excl.Tyres),30507
Wyre Council,http://opendatacommunities.org/doc/district-council/wyre,30/10/2022,People and Places,Environmental Services,132B,EK Motors Factors LTD,24/10/2022,PE144797,28.72,0.00,Parts,Daywork Materials (Excl.Tyres),30507
Wyre Council,http://opendatacommunities.org/doc/district-council/wyre,30/10/2022,People and Places,Environmental Services,132B,EK Motors Factors LTD,24/10/2022,PE144796,106.85,0.00,Parts,Daywork Materials (Excl.Tyres),30507
Wyre Council,http://opendatacommunities.org/doc/district-council/wyre,30/10/2022,People and Places,Environmental Services,132B,EK Motors Factors LTD,24/10/2022,PE144788,5.91,0.00,Parts,Daywork Materials (Excl.Tyres),30507
Wyre Council,http://opendatacommunities.org/doc/district-council/wyre,30/10/2022,People and Places,Environmental Services,132B,EK Motors Factors LTD,24/10/2022,PE144787,29.47,0.00,Parts,Daywork Materials (Excl.Tyres),30507
Wyre Council,http://opendatacommunities.org/doc/district-council/wyre,30/10/2022,People and Places,Environmental Services,132B,EK Motors Factors LTD,24/10/2022,PE144790,9.37,0.00,Parts,Daywork Materials (Excl.Tyres),30507
Wyre Council,http://opendatacommunities.org/doc/district-council/wyre,30/10/2022,People and Places,Environmental Services,132B,EK Motors Factors LTD,24/10/2022,PE144791,23.84,0.00,Parts,Daywork Materials (Excl.Tyres),30507
Wyre Council,http://opendatacommunities.org/doc/district-council/wyre,30/10/2022,People and Places,Support Services,135B,FR Sharrock LTD,06/10/2022,PE144205,378.10,0.00,Various parts,Daywork Materials (Excl.Tyres),30507
Wyre Council,http://opendatacommunities.org/doc/district-council/wyre,30/10/2022,People and Places,Support Services,135B,FR Sharrock LTD,06/10/2022,PE144205,607.02,0.00,Various parts,Daywork Materials (Excl.Tyres),30507
Wyre Council,http://opendatacommunities.org/doc/district-council/wyre,30/10/2022,People and Places,Environmental Services,132B,Lancashire DAF,24/10/2022,PE144097,202.81,0.00,Various parts,Daywork Materials (Excl.Tyres),30507
Wyre Council,http://opendatacommunities.org/doc/district-council/wyre,30/10/2022,People and Places,Environmental Services,132B,Lancashire DAF,06/10/2022,PE144088,3512.48,0.00,RK19 OPE - MOT Testing and parts,Daywork Materials (Excl.Tyres),30507
Wyre Council,http://opendatacommunities.org/doc/district-council/wyre,30/10/2022,People and Places,Support Services,135B,Lancashire DAF,13/10/2022,PE144418,469.21,0.00,Various parts,Daywork Materials (Excl.Tyres),30507
Wyre Council,http://opendatacommunities.org/doc/district-council/wyre,30/10/2022,People and Places,Environmental Services,132B,Chris Allen Garages LTD,13/10/2022,PE144670,90.00,0.00,investigate loss of power intermittently v87,Daywork Materials (Excl.Tyres),30507
Wyre Council,http://opendatacommunities.org/doc/district-council/wyre,30/10/2022,People and Places,Environmental Services,132B,RENTOKIL INITIAL UK LTD,31/10/2022,PE145004,1104.60,0.00,Clinical waste collection and disposal services to Wyre domestic customers.  To include provision of containers for financial year 2022/23,Disposal Costs Hazardous Waste,27012
Wyre Council,http://opendatacommunities.org/doc/district-council/wyre,30/10/2022,People and Places,Environmental Services,132B,N Power LTD,24/10/2022,PE144627,277.55,0.00,Electric 01/09/22 to 30/09/22,Electricity,22000
Wyre Council,http://opendatacommunities.org/doc/district-council/wyre,30/10/2022,People and Places,Parking Services,133F,N Power LTD,24/10/2022,PE144628,435.47,0.00,,Electricity,22000
Wyre Council,http://opendatacommunities.org/doc/district-council/wyre,30/10/2022,People and Places,Parking Services,133F,N Power LTD,24/10/2022,PE144627,1556.58,0.00,Electric 01/09/22 to 30/09/22,Electricity,22000
Wyre Council,http://opendatacommunities.org/doc/district-council/wyre,30/10/2022,People and Places,Environmental Services,132B,Bryt Energy Limited,25/10/2022,PE144911,73.89,0.00,Electric 01/09/22 to 30/09/22,Electricity,22000
Wyre Council,http://opendatacommunities.org/doc/district-council/wyre,30/10/2022,People and Places,Cultural and Related Services,132A,Bryt Energy Limited,25/10/2022,PE144906,1963.50,0.00,Electric: 01/09/22 to 30/09/22,Electricity,22000
Wyre Council,http://opendatacommunities.org/doc/district-council/wyre,30/10/2022,People and Places,Cultural and Related Services,132A,Bryt Energy Limited,25/10/2022,PE144907,666.89,0.00,Electric 01/09/22 to 30/09/22,Electricity,22000
Wyre Council,http://opendatacommunities.org/doc/district-council/wyre,30/10/2022,People and Places,Support Services,135B,Bryt Energy Limited,25/10/2022,PE144910,4646.79,0.00,Electric 01/09/22 to 30/09/22,Electricity,22000
Wyre Council,http://opendatacommunities.org/doc/district-council/wyre,30/10/2022,People and Places,Planning and Development Servs,132C,Bryt Energy Limited,24/10/2022,PE144892,3066.85,0.00,Electric 01/06/22 to 30/06/22,Electricity,22000
Wyre Council,http://opendatacommunities.org/doc/district-council/wyre,30/10/2022,People and Places,Planning and Development Servs,132C,Bryt Energy Limited,24/10/2022,PE144891,3096.80,0.00,Electric 01/05/22 to 31/05/22,Electricity,22000
Wyre Council,http://opendatacommunities.org/doc/district-council/wyre,30/10/2022,People and Places,Planning and Development Servs,132C,Bryt Energy Limited,24/10/2022,PE144890,3270.19,0.00,Electric 01/03/22 to 31/03/22,Electricity,22000
Wyre Council,http://opendatacommunities.org/doc/district-council/wyre,30/10/2022,People and Places,Planning and Development Servs,132C,Bryt Energy Limited,24/10/2022,PE144888,1891.97,0.00,Electric 01/11/20 to 30/11/20,Electricity,22000
Wyre Council,http://opendatacommunities.org/doc/district-council/wyre,30/10/2022,People and Places,Planning and Development Servs,132C,Bryt Energy Limited,25/10/2022,PE144909,2963.71,0.00,Electric 30/08/22 to 30/09/22,Electricity,22000
Wyre Council,http://opendatacommunities.org/doc/district-council/wyre,30/10/2022,People and Places,Planning and Development Servs,132C,Bryt Energy Limited,24/10/2022,PE144886,-3286.87,0.00,Electric credit 01/03/22 to 31/03/22,Electricity,22000
Wyre Council,http://opendatacommunities.org/doc/district-council/wyre,30/10/2022,People and Places,Planning and Development Servs,132C,Bryt Energy Limited,24/10/2022,PE144887,-3111.62,0.00,Electric 01/05/22 to 31/05/22,Electricity,22000
Wyre Council,http://opendatacommunities.org/doc/district-council/wyre,30/10/2022,People and Places,Planning and Development Servs,132C,Bryt Energy Limited,26/10/2022,PE144952,-3242.33,0.00,"Main Hall, Adelaide St, Fleetwood Cr note for I-132139 01/10/21 to 31/10/21",Electricity,22000
Wyre Council,http://opendatacommunities.org/doc/district-council/wyre,30/10/2022,People and Places,Planning and Development Servs,132C,Bryt Energy Limited,26/10/2022,PE144889,3250.57,0.00,Electric 01/10/21 to 31/10/21,Electricity,22000
Wyre Council,http://opendatacommunities.org/doc/district-council/wyre,30/10/2022,People and Places,Cultural and Related Services,132A,Bryt Energy Limited,25/10/2022,PE144908,97.49,0.00,Electric 01/09/22 to 30/09/22,Electricity,22000
Wyre Council,http://opendatacommunities.org/doc/district-council/wyre,30/10/2022,People and Places,Cultural and Related Services,132A,Corona Energy Retail 4 Limited,26/10/2022,PE144928,30.30,0.00,Electricity Charges Oct 22,Electricity,22000
Wyre Council,http://opendatacommunities.org/doc/district-council/wyre,30/10/2022,People and Places,Cultural and Related Services,132A,Corona Energy Retail 4 Limited,26/10/2022,PE144928,83.02,0.00,Electricity Charges Oct 22,Electricity,22000
Wyre Council,http://opendatacommunities.org/doc/district-council/wyre,30/10/2022,People and Places,Environmental Services,132B,Corona Energy Retail 4 Limited,26/10/2022,PE144928,169.11,0.00,Electricity Charges Oct 22,Electricity,22000
Wyre Council,http://opendatacommunities.org/doc/district-council/wyre,30/10/2022,People and Places,Planning and Development Servs,132C,Corona Energy Retail 4 Limited,26/10/2022,PE144928,406.45,0.00,Electricity Charges Oct 22,Electricity,22000
Wyre Council,http://opendatacommunities.org/doc/district-council/wyre,30/10/2022,People and Places,Cultural and Related Services,132A,Corona Energy Retail 4 Limited,26/10/2022,PE144928,382.10,0.00,Electricity Charges Oct 22,Electricity,22000
Wyre Council,http://opendatacommunities.org/doc/district-council/wyre,30/10/2022,People and Places,Cultural and Related Services,132A,Corona Energy Retail 4 Limited,26/10/2022,PE144928,43.79,0.00,Electricity Charges Oct 22,Electricity,22000
Wyre Council,http://opendatacommunities.org/doc/district-council/wyre,30/10/2022,People and Places,Cultural and Related Services,132A,Corona Energy Retail 4 Limited,26/10/2022,PE144928,25.43,0.00,Electricity Charges Oct 22,Electricity,22000
Wyre Council,http://opendatacommunities.org/doc/district-council/wyre,30/10/2022,People and Places,Cultural and Related Services,132A,Corona Energy Retail 4 Limited,26/10/2022,PE144928,181.31,0.00,Electricity Charges Oct 22,Electricity,22000
Wyre Council,http://opendatacommunities.org/doc/district-council/wyre,30/10/2022,People and Places,Environmental Services,132B,Corona Energy Retail 4 Limited,26/10/2022,PE144928,295.31,0.00,Electricity Charges Oct 22,Electricity,22000
Wyre Council,http://opendatacommunities.org/doc/district-council/wyre,30/10/2022,People and Places,Central Services to the Public,131C,Corona Energy Retail 4 Limited,26/10/2022,PE144928,531.19,0.00,Electricity Charges Oct 22,Electricity,22000
Wyre Council,http://opendatacommunities.org/doc/district-council/wyre,30/10/2022,People and Places,Cultural and Related Services,132A,Corona Energy Retail 4 Limited,26/10/2022,PE144928,79.59,0.00,Electricity Charges Oct 22,Electricity,22000
Wyre Council,http://opendatacommunities.org/doc/district-council/wyre,30/10/2022,People and Places,Cultural and Related Services,132A,Corona Energy Retail 4 Limited,26/10/2022,PE144928,164.97,0.00,Electricity Charges Oct 22,Electricity,22000
Wyre Council,http://opendatacommunities.org/doc/district-council/wyre,30/10/2022,People and Places,Cultural and Related Services,132A,Corona Energy Retail 4 Limited,26/10/2022,PE144928,236.01,0.00,Electricity Charges Oct 22,Electricity,22000
Wyre Council,http://opendatacommunities.org/doc/district-council/wyre,30/10/2022,People and Places,Cultural and Related Services,132A,Corona Energy Retail 4 Limited,26/10/2022,PE144928,34.82,0.00,Electricity Charges Oct 22,Electricity,22000
Wyre Council,http://opendatacommunities.org/doc/district-council/wyre,30/10/2022,People and Places,Cultural and Related Services,132A,Corona Energy Retail 4 Limited,26/10/2022,PE144928,189.24,0.00,Electricity Charges Oct 22,Electricity,22000
Wyre Council,http://opendatacommunities.org/doc/district-council/wyre,30/10/2022,People and Places,Cultural and Related Services,132A,Corona Energy Retail 4 Limited,26/10/2022,PE144928,375.85,0.00,Electricity Charges Oct 22,Electricity,22000
Wyre Council,http://opendatacommunities.org/doc/district-council/wyre,30/10/2022,People and Places,Cultural and Related Services,132A,Corona Energy Retail 4 Limited,26/10/2022,PE144928,2152.67,0.00,Electricity Charges Oct 22,Electricity,22000
Wyre Council,http://opendatacommunities.org/doc/district-council/wyre,30/10/2022,People and Places,Cultural and Related Services,132A,Corona Energy Retail 4 Limited,26/10/2022,PE144928,-230.18,0.00,Electricity Charges Oct 22,Electricity,22000
Wyre Council,http://opendatacommunities.org/doc/district-council/wyre,30/10/2022,People and Places,Cultural and Related Services,132A,Corona Energy Retail 4 Limited,26/10/2022,PE144928,590.48,0.00,Electricity Charges Oct 22,Electricity,22000
Wyre Council,http://opendatacommunities.org/doc/district-council/wyre,30/10/2022,People and Places,Cultural and Related Services,132A,Corona Energy Retail 4 Limited,26/10/2022,PE144928,5.59,0.00,Electricity Charges Oct 22,Electricity,22000
Wyre Council,http://opendatacommunities.org/doc/district-council/wyre,30/10/2022,People and Places,Cultural and Related Services,132A,Corona Energy Retail 4 Limited,26/10/2022,PE144928,162.96,0.00,Electricity Charges Oct 22,Electricity,22000
Wyre Council,http://opendatacommunities.org/doc/district-council/wyre,30/10/2022,People and Places,Cultural and Related Services,132A,Corona Energy Retail 4 Limited,26/10/2022,PE144928,203.32,0.00,Electricity Charges Oct 22,Electricity,22000
Wyre Council,http://opendatacommunities.org/doc/district-council/wyre,30/10/2022,People and Places,Environmental Services,132B,Corona Energy Retail 4 Limited,26/10/2022,PE144928,3497.84,0.00,Electricity Charges Oct 22,Electricity,22000
Wyre Council,http://opendatacommunities.org/doc/district-council/wyre,30/10/2022,People and Places,Environmental Services,132B,Corona Energy Retail 4 Limited,26/10/2022,PE144928,429.74,0.00,Electricity Charges Oct 22,Electricity,22000
Wyre Council,http://opendatacommunities.org/doc/district-council/wyre,30/10/2022,People and Places,Environmental Services,132B,Corona Energy Retail 4 Limited,26/10/2022,PE144928,37.06,0.00,Electricity Charges Oct 22,Electricity,22000
Wyre Council,http://opendatacommunities.org/doc/district-council/wyre,30/10/2022,People and Places,Planning and Development Servs,132C,Corona Energy Retail 4 Limited,26/10/2022,PE144928,322.13,0.00,Electricity Charges Oct 22,Electricity,22000
Wyre Council,http://opendatacommunities.org/doc/district-council/wyre,30/10/2022,People and Places,Environmental Services,132B,Corona Energy Retail 4 Limited,26/10/2022,PE144928,80.63,0.00,Electricity Charges Oct 22,Electricity,22000
Wyre Council,http://opendatacommunities.org/doc/district-council/wyre,30/10/2022,People and Places,Cultural and Related Services,132A,Andrew Signs LTD,12/10/2022,PE144603,137.00,0.00,payment in full of invoice INV-1299,Emergency Telephones,21021
Wyre Council,http://opendatacommunities.org/doc/district-council/wyre,30/10/2022,People and Places,Cultural and Related Services,132A,Andrew Signs LTD,12/10/2022,PE144603,138.00,0.00,payment in full of invoice INV-1299,Emergency Telephones,21021
Wyre Council,http://opendatacommunities.org/doc/district-council/wyre,30/10/2022,People and Places,Cultural and Related Services,132A,Lyreco UK LTD,11/10/2022,PE144428,55.32,0.00,2x boxes A4 white photocopy paper,Equipment for Resale,46811
Wyre Council,http://opendatacommunities.org/doc/district-council/wyre,30/10/2022,People and Places,Cultural and Related Services,132A,Garstang Show,27/10/2022,PE144984,657.05,0.00,58 adult tickets sold @ 12.50 = 725.00 12 Child tickets sold @ 4.00 = 48.00  Total = 773.00   less 15% commission 115.95   Total Invoice = 657.05,Equipment for Resale,46811
Wyre Council,http://opendatacommunities.org/doc/district-council/wyre,30/10/2022,People and Places,Planning and Development Servs,132C,MJS Talent,21/10/2022,PE144763,500.00,0.00,Wyre Business Awards - emcee,Event Hospitality,46842
Wyre Council,http://opendatacommunities.org/doc/district-council/wyre,30/10/2022,People and Places,Cultural and Related Services,132A,Fylde Coast YMCA,24/10/2022,PE144843,280.00,0.00,"11 Food Vouchers x 5 = 55 15 session vouchers x 15 = 225 Fleetwood Leisure Centre - HAF 2022, vouchers for young people",External Coaching,46850
Wyre Council,http://opendatacommunities.org/doc/district-council/wyre,30/10/2022,People and Places,Cultural and Related Services,132A,Fylde Coast YMCA,24/10/2022,PE144844,560.00,0.00,100 Food Costs (20 x 5) 300 Session Vouchers (20 x 15) 4G sessions x 4 100 Pitch Hire 60 staffing Summer 2022 HAF programme Thornton LC - voucher scheme for young people aged 12-16 years,External Coaching,46850
Wyre Council,http://opendatacommunities.org/doc/district-council/wyre,30/10/2022,People and Places,Cultural and Related Services,132A,Cycling Projects,24/10/2022,PE144751,4270.00,0.00,"1.00 Staffing and travel for Wyre 2022 3,240.00  1.00 Maintenance for Wyre 2022 300.00  1.00 Management for Wyre 2022 730.00  total cost - 4,270 Support for the delivery of Wyre Wheels - 2022 at Memorial Park Fleetwood",External Coaching,46850
Wyre Council,http://opendatacommunities.org/doc/district-council/wyre,30/10/2022,People and Places,Cultural and Related Services,132A,Fleetwood Town Community Trust,11/10/2022,PE144594,16485.50,0.00,"HAF delivery Summer 22 - Staffing 5120, Allocated child places Shakespeare (312) 3120 Poolfoot (315) 3937.50,Meals (637) 2508, Coordination/Admin 800, Equipment 1000",External Coaching,46850
Wyre Council,http://opendatacommunities.org/doc/district-council/wyre,30/10/2022,People and Places,Cultural and Related Services,132A,McGann Boxing and Fitness,04/10/2022,PE144437,2670.00,0.00,"HAF Project: 01 - 05 August 2022, 15 children per day@20 per day - 1,500. Food - 200, Equipment - 750 Trophies/admin - 200",External Coaching,46850
Wyre Council,http://opendatacommunities.org/doc/district-council/wyre,30/10/2022,People and Places,Environmental Services,132B,UK Health Security Agency,25/10/2022,PE143163,588.60,0.00,For shellfish testing -  April 2022 - March 2023,Food and Drug Etc Samples,46809
Wyre Council,http://opendatacommunities.org/doc/district-council/wyre,30/10/2022,People and Places,Support Services,135B,Allstar Business Solutions LTD,20/10/2022,PE144458,313.20,0.00,Fuel Charges for September,Fuel,30500
Wyre Council,http://opendatacommunities.org/doc/district-council/wyre,30/10/2022,People and Places,Support Services,135B,Allstar Business Solutions LTD,20/10/2022,PE144458,328.93,0.00,Fuel Charges for September,Fuel,30500
Wyre Council,http://opendatacommunities.org/doc/district-council/wyre,30/10/2022,People and Places,Planning and Development Servs,132C,Bryt Energy Limited,12/10/2022,PE144601,-827.49,0.00,"Copse Road, Aug 22 Cr",Gas,22001
Wyre Council,http://opendatacommunities.org/doc/district-council/wyre,30/10/2022,People and Places,Planning and Development Servs,132C,Bryt Energy Limited,12/10/2022,PE144608,868.59,0.00,Copse Rd Electric Sept 22,Gas,22001
Wyre Council,http://opendatacommunities.org/doc/district-council/wyre,30/10/2022,People and Places,Planning and Development Servs,132C,Bryt Energy Limited,12/10/2022,PE144607,993.25,0.00,Copse Road Electric Aug 22,Gas,22001
Wyre Council,http://opendatacommunities.org/doc/district-council/wyre,30/10/2022,People and Places,Planning and Development Servs,132C,AvantiGas ON Ltd,04/10/2022,PE144026,637.41,0.00,Gas Charges for the period 01/08/22-31/8/22,Gas,22001
Wyre Council,http://opendatacommunities.org/doc/district-council/wyre,30/10/2022,People and Places,Planning and Development Servs,132C,AvantiGas ON Ltd,07/10/2022,PE144470,1965.40,0.00,Gas Sep 22,Gas,22001
Wyre Council,http://opendatacommunities.org/doc/district-council/wyre,30/10/2022,People and Places,Cultural and Related Services,132A,AvantiGas ON Ltd,04/10/2022,PE144025,310.08,0.00,Gas Charges for the period 01/8/22-31/8/22,Gas,22001
Wyre Council,http://opendatacommunities.org/doc/district-council/wyre,30/10/2022,People and Places,Cultural and Related Services,132A,AvantiGas ON Ltd,07/10/2022,PE144469,412.87,0.00,Gas for Sep 22,Gas,22001
Wyre Council,http://opendatacommunities.org/doc/district-council/wyre,30/10/2022,People and Places,Support Services,135B,AvantiGas ON Ltd,07/10/2022,PE144471,1414.33,0.00,Gas Sep 22,Gas,22001
Wyre Council,http://opendatacommunities.org/doc/district-council/wyre,30/10/2022,People and Places,Planning and Development Servs,132C,AvantiGas ON Ltd,04/10/2022,PE144024,48.69,0.00,Gas charges for the period 01/08/22-31/08/22,Gas,22001
Wyre Council,http://opendatacommunities.org/doc/district-council/wyre,30/10/2022,People and Places,Planning and Development Servs,132C,AvantiGas ON Ltd,07/10/2022,PE144468,59.95,0.00,Gas Charges Sep 22,Gas,22001
Wyre Council,http://opendatacommunities.org/doc/district-council/wyre,30/10/2022,People and Places,Support Services,135B,M J Wilkinson,26/10/2022,PE144954,84.46,0.00,payment of invoice 35028 - hire of hitachi zx19 (09/08/22),Hire of Tools or Equipment,40101
Wyre Council,http://opendatacommunities.org/doc/district-council/wyre,30/10/2022,Finance,Central Services to the Public,131C,,28/10/2022,WPST00080710,820.00,0.00,household support fund 25/10,Household Support Fund,45122
Wyre Council,http://opendatacommunities.org/doc/district-council/wyre,30/10/2022,People and Places,Environmental Services,132B,Poulton Pets LTD,13/10/2022,PE144673,1503.00,0.00,Provision of stray dog kennelling service 2022/23,Impounded Dogs Costs,46807
Wyre Council,http://opendatacommunities.org/doc/district-council/wyre,30/10/2022,People and Places,Environmental Services,132B,Poulton Pets LTD,12/10/2022,PE144040,1525.50,0.00,Provision of stray dog kennelling service 2022/23,Impounded Dogs Costs,46807
Wyre Council,http://opendatacommunities.org/doc/district-council/wyre,30/10/2022,Finance,General Fund below the line,136A,PWLB,04/10/2022,WPST00076627,34414.80,0.00,PUBLIC WORKS LOAN 30/9/22,Interest Payment - Long Term Borrowing,46010
Wyre Council,http://opendatacommunities.org/doc/district-council/wyre,30/10/2022,Resources,Cultural and Related Services,132A,Daisy Communications LTD,12/10/2022,RS144038,44.37,0.00,Monthly Charges for w/e  31-08-2031,Internet and Telephone Charges,43503
Wyre Council,http://opendatacommunities.org/doc/district-council/wyre,30/10/2022,Resources,Cultural and Related Services,132A,Daisy Communications LTD,24/10/2022,RS144730,10.71,0.00,Monthly charges for M/E 30/09/22,Internet and Telephone Charges,43503
Wyre Council,http://opendatacommunities.org/doc/district-council/wyre,30/10/2022,Resources,Support Services,135B,Daisy Communications LTD,24/10/2022,RS144730,16.95,0.00,Monthly charges for M/E 30/09/22,Internet and Telephone Charges,43503
Wyre Council,http://opendatacommunities.org/doc/district-council/wyre,30/10/2022,Resources,Support Services,135B,Daisy Communications LTD,12/10/2022,RS144038,16.95,0.00,Monthly Charges for w/e  31-08-2040,Internet and Telephone Charges,43503
Wyre Council,http://opendatacommunities.org/doc/district-council/wyre,30/10/2022,Resources,Support Services,135B,Daisy Communications LTD,12/10/2022,RS144038,44.26,0.00,Monthly Charges for w/e  31-08-2041,Internet and Telephone Charges,43503
Wyre Council,http://opendatacommunities.org/doc/district-council/wyre,30/10/2022,Resources,Support Services,135B,Daisy Communications LTD,12/10/2022,RS144038,21.42,0.00,Monthly Charges for w/e  31-08-2039,Internet and Telephone Charges,43503
Wyre Council,http://opendatacommunities.org/doc/district-council/wyre,30/10/2022,Resources,Support Services,135B,Daisy Communications LTD,24/10/2022,RS144730,21.42,0.00,Monthly charges for M/E 30/09/22,Internet and Telephone Charges,43503
Wyre Council,http://opendatacommunities.org/doc/district-council/wyre,30/10/2022,Resources,Support Services,135B,Daisy Communications LTD,24/10/2022,RS144730,44.27,0.00,Monthly charges for M/E 30/09/22,Internet and Telephone Charges,43503
Wyre Council,http://opendatacommunities.org/doc/district-council/wyre,30/10/2022,Resources,Cultural and Related Services,132A,Daisy Communications LTD,24/10/2022,RS144730,27.65,0.00,Monthly charges for M/E 30/09/22,Internet and Telephone Charges,43503
Wyre Council,http://opendatacommunities.org/doc/district-council/wyre,30/10/2022,Resources,Cultural and Related Services,132A,Daisy Communications LTD,12/10/2022,RS144038,27.65,0.00,Monthly Charges for w/e  31-08-2027,Internet and Telephone Charges,43503
Wyre Council,http://opendatacommunities.org/doc/district-council/wyre,30/10/2022,Resources,Corporate and Democratic Core,131A,Daisy Communications LTD,12/10/2022,RS144038,10.73,0.00,Monthly Charges for w/e 31-08-2022,Internet and Telephone Charges,43503
Wyre Council,http://opendatacommunities.org/doc/district-council/wyre,30/10/2022,Resources,Corporate and Democratic Core,131A,Daisy Communications LTD,24/10/2022,RS144730,10.71,0.00,Monthly charges for M/E 30/09/22,Internet and Telephone Charges,43503
Wyre Council,http://opendatacommunities.org/doc/district-council/wyre,30/10/2022,Resources,Support Services,135B,Vodafone LTD,24/10/2022,RS144451,387.99,0.00,PSN Dedicated primary access bearer 10Mbps,Internet and Telephone Charges,43503
Wyre Council,http://opendatacommunities.org/doc/district-council/wyre,30/10/2022,Resources,Support Services,135B,Vodafone LTD,24/10/2022,RS144451,16.50,0.00,PSN access primary distance,Internet and Telephone Charges,43503
Wyre Council,http://opendatacommunities.org/doc/district-council/wyre,30/10/2022,Resources,Support Services,135B,Vodafone LTD,24/10/2022,RS144451,199.98,0.00,Cisco CPE Router bundle,Internet and Telephone Charges,43503
Wyre Council,http://opendatacommunities.org/doc/district-council/wyre,30/10/2022,Resources,Central Services to the Public,131C,Lancashire County Council,24/10/2022,RS144816,736.00,0.00,Wyre Council Con29 Searches for July 2022 - 46 @ 16.00 each,L.C.C. Search Fees,42700
Wyre Council,http://opendatacommunities.org/doc/district-council/wyre,30/10/2022,Resources,Central Services to the Public,131C,Lancashire County Council,24/10/2022,RS144816,784.00,0.00,Wyre Council Con29 Searches for August 2022 - 49 @ 16.00 each,L.C.C. Search Fees,42700
Wyre Council,http://opendatacommunities.org/doc/district-council/wyre,30/10/2022,People and Places,Support Services,135B,Blackpool Council,24/10/2022,PE143164,10898.00,0.00,credited in full,Legal Fees,46300
Wyre Council,http://opendatacommunities.org/doc/district-council/wyre,30/10/2022,People and Places,Support Services,135B,Blackpool Council,24/10/2022,PE143366,-10898.00,0.00,credited in full,Legal Fees,46300
Wyre Council,http://opendatacommunities.org/doc/district-council/wyre,30/10/2022,People and Places,Environmental Services,132B,Lancashire DAF,18/10/2022,PE144694,91.00,0.00,MOT TEST FEE,Licences/MOT Certificates,30502
Wyre Council,http://opendatacommunities.org/doc/district-council/wyre,30/10/2022,People and Places,Environmental Services,132B,Lancashire DAF,18/10/2022,PE144694,40.00,0.00,MOT LANE FEE,Licences/MOT Certificates,30502
Wyre Council,http://opendatacommunities.org/doc/district-council/wyre,30/10/2022,People and Places,Cultural and Related Services,132A,Lancashire DAF,18/10/2022,PE144693,113.00,0.00,MOT TEST FEE,Licences/MOT Certificates,30502
Wyre Council,http://opendatacommunities.org/doc/district-council/wyre,30/10/2022,People and Places,Cultural and Related Services,132A,Lancashire DAF,18/10/2022,PE144693,45.00,0.00,MOT LANE FEE,Licences/MOT Certificates,30502
Wyre Council,http://opendatacommunities.org/doc/district-council/wyre,30/10/2022,People and Places,Highways,133B,Lancashire County Council,31/10/2022,PE145018,533.70,0.00,Provide 6 no Astro Suntracker 1 modules to be installed in Cleveleys promenade lighting,Maint. of Unadopted Assets - Engineers,28014
Wyre Council,http://opendatacommunities.org/doc/district-council/wyre,30/10/2022,People and Places,Planning and Development Servs,132C,Trident Rentals Ltd,05/10/2022,PE144457,639.67,0.00,delivery and set up of new compactor on lease Fleetwood market,Maintenance of Tools or Equipment,40102
Wyre Council,http://opendatacommunities.org/doc/district-council/wyre,30/10/2022,People and Places,Cultural and Related Services,132A,Ian Deemer,11/10/2022,PE144595,762.50,0.00,To clean all carpets at TLT,Maintenance of Tools or Equipment,40102
Wyre Council,http://opendatacommunities.org/doc/district-council/wyre,30/10/2022,People and Places,Planning and Development Servs,132C,Terence Barker LTD,26/10/2022,PE144942,702.11,0.00,12-month contract agreement for support and sim services for Wyre Council fuelling system12-month Sim card rental @ 341.2712-month support @ 360.84,Maintenance of Tools or Equipment,40102
Wyre Council,http://opendatacommunities.org/doc/district-council/wyre,30/10/2022,Resources,Parking Services,133F,VODAFONE LIMITED,03/10/2022,RS143932,12.00,0.00,"Mobile Phone Charges, invoice dated August",Maintenance of Tools or Equipment,40102
Wyre Council,http://opendatacommunities.org/doc/district-council/wyre,30/10/2022,People and Places,Highways,133B,Dr Tree Surgeons,21/10/2022,PE144727,2700.00,0.00,"Quotation 605 1 Tree works as  per tree survey provided. Total Net Amount: 2,700.00VAT @ 20%: 540.00Quote Total: 3,240.00",Maintenance of Trees and Shrubs,28006
Wyre Council,http://opendatacommunities.org/doc/district-council/wyre,30/10/2022,People and Places,Environmental Services,132B,Andrew Signs LTD,26/10/2022,PE144953,151.67,0.00,100 x screw banding fixings,Materials and Consumables,42002
Wyre Council,http://opendatacommunities.org/doc/district-council/wyre,30/10/2022,People and Places,Support Services,135B,EK Motors Factors LTD,21/10/2022,PE144784,51.81,0.00,Parts,Materials and Consumables,42002
Wyre Council,http://opendatacommunities.org/doc/district-council/wyre,30/10/2022,People and Places,Support Services,135B,EK Motors Factors LTD,21/10/2022,PE144783,125.04,0.00,Parts,Materials and Consumables,42002
Wyre Council,http://opendatacommunities.org/doc/district-council/wyre,30/10/2022,People and Places,Support Services,135B,EK Motors Factors LTD,21/10/2022,PE144782,23.34,0.00,Parts,Materials and Consumables,42002
Wyre Council,http://opendatacommunities.org/doc/district-council/wyre,30/10/2022,People and Places,Support Services,135B,EK Motors Factors LTD,24/10/2022,PE144787,100.49,0.00,Parts,Materials and Consumables,42002
Wyre Council,http://opendatacommunities.org/doc/district-council/wyre,30/10/2022,People and Places,Support Services,135B,EK Motors Factors LTD,24/10/2022,PE144786,28.10,0.00,Parts,Materials and Consumables,42002
Wyre Council,http://opendatacommunities.org/doc/district-council/wyre,30/10/2022,People and Places,Support Services,135B,EK Motors Factors LTD,24/10/2022,PE144785,10.01,0.00,Parts,Materials and Consumables,42002
Wyre Council,http://opendatacommunities.org/doc/district-council/wyre,30/10/2022,People and Places,Support Services,135B,EK Motors Factors LTD,24/10/2022,PE144779,3.71,0.00,Parts,Materials and Consumables,42002
Wyre Council,http://opendatacommunities.org/doc/district-council/wyre,30/10/2022,People and Places,Support Services,135B,EK Motors Factors LTD,24/10/2022,PE144778,4.60,0.00,Parts,Materials and Consumables,42002
Wyre Council,http://opendatacommunities.org/doc/district-council/wyre,30/10/2022,People and Places,Support Services,135B,EK Motors Factors LTD,24/10/2022,PE144781,26.40,0.00,Parts,Materials and Consumables,42002
Wyre Council,http://opendatacommunities.org/doc/district-council/wyre,30/10/2022,People and Places,Support Services,135B,EK Motors Factors LTD,24/10/2022,PE144780,52.80,0.00,Parts,Materials and Consumables,42002
Wyre Council,http://opendatacommunities.org/doc/district-council/wyre,30/10/2022,People and Places,Support Services,135B,FR Sharrock LTD,06/10/2022,PE144205,142.06,0.00,Various parts,Materials and Consumables,42002
Wyre Council,http://opendatacommunities.org/doc/district-council/wyre,30/10/2022,People and Places,Support Services,135B,Key Engineering & Hygiene Supplies LTD,24/10/2022,PE144832,350.40,0.00,"20 boxes of BK090B1 - Heavy duty black bags @ 17.52 per 200 Delivery to Wyre Council, Copse Road Depot, Copse Road, Fleetwood, FY7 6RP",Materials and Consumables,42002
Wyre Council,http://opendatacommunities.org/doc/district-council/wyre,30/10/2022,People and Places,Support Services,135B,Key Engineering & Hygiene Supplies LTD,21/10/2022,PE144759,79.26,0.00,"Supply and deliver as per quote 16083 6/10/2022Delivery to Wyre Council, Copse Road, Fleetwood, FY7 6RP",Materials and Consumables,42002
Wyre Council,http://opendatacommunities.org/doc/district-council/wyre,30/10/2022,People and Places,Support Services,135B,Malcolm McCulloch & Sons LTD,26/10/2022,PE144956,1149.94,0.00,items on invoice 254490,Materials and Consumables,42002
Wyre Council,http://opendatacommunities.org/doc/district-council/wyre,30/10/2022,People and Places,Environmental Services,132B,Malcolm McCulloch & Sons LTD,26/10/2022,PE144956,590.80,0.00,items on invoice 254490,Materials and Consumables,42002
Wyre Council,http://opendatacommunities.org/doc/district-council/wyre,30/10/2022,People and Places,Support Services,135B,Malcolm McCulloch & Sons LTD,26/10/2022,PE144956,214.56,0.00,items on invoice 254490,Materials and Consumables,42002
Wyre Council,http://opendatacommunities.org/doc/district-council/wyre,30/10/2022,People and Places,Support Services,135B,Chris Allen Garages LTD,21/10/2022,PE144769,114.41,0.00,1 x rear veiw mirror assy,Materials and Consumables,42002
Wyre Council,http://opendatacommunities.org/doc/district-council/wyre,30/10/2022,People and Places,Support Services,135B,Chris Allen Garages LTD,13/10/2022,PE144672,325.46,0.00,payment of invoice 6598,Materials and Consumables,42002
Wyre Council,http://opendatacommunities.org/doc/district-council/wyre,30/10/2022,People and Places,Support Services,135B,Agrovista UK LTD,19/10/2022,PE144718,50.00,0.00,Carriage @ 50.00,Materials and Consumables,42002
Wyre Council,http://opendatacommunities.org/doc/district-council/wyre,30/10/2022,People and Places,Support Services,135B,Agrovista UK LTD,19/10/2022,PE144718,614.00,0.00,200 x 25kg bags of 70/30 top dressing @ 3.07 per bag,Materials and Consumables,42002
Wyre Council,http://opendatacommunities.org/doc/district-council/wyre,30/10/2022,People and Places,Support Services,135B,Agrovista UK LTD,19/10/2022,PE144718,49.98,0.00,1 x Nemaflo @ 49.99 / L,Materials and Consumables,42002
Wyre Council,http://opendatacommunities.org/doc/district-council/wyre,30/10/2022,People and Places,Support Services,135B,Agrovista UK LTD,19/10/2022,PE144718,147.50,0.00,"5 x bags of Naturelle Micro Autumn 5-0-21 @ 29.50 / bagDelivery to Wyre Council, Copse Road Depot, Copse Road, Fleetwood, Lancashire, FY7 6RP.",Materials and Consumables,42002
Wyre Council,http://opendatacommunities.org/doc/district-council/wyre,30/10/2022,People and Places,Support Services,135B,Agrovista UK LTD,31/10/2022,PE145019,100.65,0.00,"
 2 x Purity Soil Conditioner | Manufactured & Stocked by GreenBest

Needs rain after application.

42.85 per 20kg bag plus 15.00 carriage",Materials and Consumables,42002
Wyre Council,http://opendatacommunities.org/doc/district-council/wyre,30/10/2022,People and Places,Environmental Services,132B,John H Mayor And Sons LTD,12/10/2022,PE144625,2350.00,0.00,50 number 9 x 3 untreated 5.4 mtr lengths delivered to the Chatsworth Depot - Fleetewood,Materials and Consumables,42002
Wyre Council,http://opendatacommunities.org/doc/district-council/wyre,30/10/2022,Resources,Central Services to the Public,131C,Landscape Printing Systems LTD,06/10/2022,RS144529,385.41,0.00,Supply of 3 x CF214X HP High Capacity Black Toner Cartridges,Materials and Consumables,42002
Wyre Council,http://opendatacommunities.org/doc/district-council/wyre,30/10/2022,Resources,Central Services to the Public,131C,Landscape Printing Systems LTD,25/10/2022,RS144915,387.22,0.00,Supply of 3 x CF214X HP Laser Jet Black Toner Cartridges,Materials and Consumables,42002
Wyre Council,http://opendatacommunities.org/doc/district-council/wyre,30/10/2022,People and Places,Support Services,135B,The County Tyre (Holdings) LTD,26/10/2022,PE144957,393.88,0.00,payment of 15I0248909.4x 215/65R16C VRED @ 98.47 EACH,Materials and Consumables,42002
Wyre Council,http://opendatacommunities.org/doc/district-council/wyre,30/10/2022,People and Places,Support Services,135B,The Pitchmark Group Ltd,04/10/2022,PE143376,1460.00,0.00,Supply as per quotation ref Total Amenity Supplies QTE-7071 - Wyre Council 12 Jul FAO Stephen Bowes  50 (8-1CON/010) Elements 8:1 Concentrate Paint - White - 10L @ 23.00 10 (REDCON/010) Elements Blue/Red/Yellow Concentrate paint - Red - 10L @ 31.00 No c,Materials and Consumables,42002
Wyre Council,http://opendatacommunities.org/doc/district-council/wyre,30/10/2022,Resources,Housing General Fund,134A,Mobility Care Services,21/10/2022,RS144774,66.00,0.00,REDACT,Minor Adaptations,45261
Wyre Council,http://opendatacommunities.org/doc/district-council/wyre,30/10/2022,Resources,Housing General Fund,134A,Mobility Care Services,21/10/2022,RS144773,132.00,0.00,REDACT,Minor Adaptations,45261
Wyre Council,http://opendatacommunities.org/doc/district-council/wyre,30/10/2022,Resources,Housing General Fund,134A,Mobility Care Services,21/10/2022,RS144772,66.00,0.00,REDACT,Minor Adaptations,45261
Wyre Council,http://opendatacommunities.org/doc/district-council/wyre,30/10/2022,Resources,Housing General Fund,134A,Mobility Care Services,21/10/2022,RS144771,66.00,0.00,REDACT,Minor Adaptations,45261
Wyre Council,http://opendatacommunities.org/doc/district-council/wyre,30/10/2022,Resources,Housing General Fund,134A,Mobility Care Services,21/10/2022,RS144775,66.00,0.00,REDACT,Minor Adaptations,45261
Wyre Council,http://opendatacommunities.org/doc/district-council/wyre,30/10/2022,Resources,Housing General Fund,134A,Mobility Care Services,24/10/2022,RS144851,480.00,0.00,REDACT,Minor Adaptations,45261
Wyre Council,http://opendatacommunities.org/doc/district-council/wyre,30/10/2022,Resources,Housing General Fund,134A,Mobility Care Services,24/10/2022,RS144853,287.00,0.00,REDACT,Minor Adaptations,45261
Wyre Council,http://opendatacommunities.org/doc/district-council/wyre,30/10/2022,Resources,Housing General Fund,134A,Mobility Care Services,24/10/2022,RS144852,414.00,0.00,REDACT,Minor Adaptations,45261
Wyre Council,http://opendatacommunities.org/doc/district-council/wyre,30/10/2022,Resources,Housing General Fund,134A,J A DICKENS LIMITED,11/10/2022,RS144585,60.00,0.00,REDACT,Minor Adaptations,45261
Wyre Council,http://opendatacommunities.org/doc/district-council/wyre,30/10/2022,Resources,Housing General Fund,134A,J A DICKENS LIMITED,11/10/2022,RS144585,94.00,0.00,REDACT,Minor Adaptations,45261
Wyre Council,http://opendatacommunities.org/doc/district-council/wyre,30/10/2022,Resources,Housing General Fund,134A,J A DICKENS LIMITED,11/10/2022,RS144586,60.00,0.00,REDACT,Minor Adaptations,45261
Wyre Council,http://opendatacommunities.org/doc/district-council/wyre,30/10/2022,Resources,Housing General Fund,134A,J A DICKENS LIMITED,11/10/2022,RS144586,94.00,0.00,REDACT,Minor Adaptations,45261
Wyre Council,http://opendatacommunities.org/doc/district-council/wyre,30/10/2022,Resources,Housing General Fund,134A,J A DICKENS LIMITED,11/10/2022,RS144587,60.00,0.00,REDACT,Minor Adaptations,45261
Wyre Council,http://opendatacommunities.org/doc/district-council/wyre,30/10/2022,Resources,Housing General Fund,134A,J A DICKENS LIMITED,11/10/2022,RS144587,94.00,0.00,REDACT,Minor Adaptations,45261
Wyre Council,http://opendatacommunities.org/doc/district-council/wyre,30/10/2022,Resources,Housing General Fund,134A,J A DICKENS LIMITED,11/10/2022,RS144588,60.00,0.00,REDACT,Minor Adaptations,45261
Wyre Council,http://opendatacommunities.org/doc/district-council/wyre,30/10/2022,Resources,Housing General Fund,134A,J A DICKENS LIMITED,11/10/2022,RS144588,94.00,0.00,REDACT,Minor Adaptations,45261
Wyre Council,http://opendatacommunities.org/doc/district-council/wyre,30/10/2022,Resources,Housing General Fund,134A,J A DICKENS LIMITED,11/10/2022,RS144589,120.00,0.00,REDACT,Minor Adaptations,45261
Wyre Council,http://opendatacommunities.org/doc/district-council/wyre,30/10/2022,Resources,Housing General Fund,134A,J A DICKENS LIMITED,11/10/2022,RS144589,167.00,0.00,REDACT,Minor Adaptations,45261
Wyre Council,http://opendatacommunities.org/doc/district-council/wyre,30/10/2022,Resources,Housing General Fund,134A,J A DICKENS LIMITED,11/10/2022,RS144590,148.00,0.00,REDACT,Minor Adaptations,45261
Wyre Council,http://opendatacommunities.org/doc/district-council/wyre,30/10/2022,Resources,Housing General Fund,134A,J A DICKENS LIMITED,11/10/2022,RS144590,160.00,0.00,REDACT,Minor Adaptations,45261
Wyre Council,http://opendatacommunities.org/doc/district-council/wyre,30/10/2022,Resources,Housing General Fund,134A,J A DICKENS LIMITED,11/10/2022,RS144591,63.00,0.00,REDACT,Minor Adaptations,45261
Wyre Council,http://opendatacommunities.org/doc/district-council/wyre,30/10/2022,Resources,Housing General Fund,134A,J A DICKENS LIMITED,11/10/2022,RS144591,100.00,0.00,REDACT,Minor Adaptations,45261
Wyre Council,http://opendatacommunities.org/doc/district-council/wyre,30/10/2022,Resources,Housing General Fund,134A,J A DICKENS LIMITED,11/10/2022,RS144592,161.00,0.00,REDACT,Minor Adaptations,45261
Wyre Council,http://opendatacommunities.org/doc/district-council/wyre,30/10/2022,Resources,Housing General Fund,134A,J A DICKENS LIMITED,11/10/2022,RS144592,280.00,0.00,REDACT,Minor Adaptations,45261
Wyre Council,http://opendatacommunities.org/doc/district-council/wyre,30/10/2022,Resources,Housing General Fund,134A,J A DICKENS LIMITED,11/10/2022,RS144593,120.00,0.00,REDACT,Minor Adaptations,45261
Wyre Council,http://opendatacommunities.org/doc/district-council/wyre,30/10/2022,Resources,Housing General Fund,134A,J A DICKENS LIMITED,11/10/2022,RS144593,167.00,0.00,REDACT,Minor Adaptations,45261
Wyre Council,http://opendatacommunities.org/doc/district-council/wyre,30/10/2022,Resources,Current Liabilities,130C,"Ministry Of Housing, Communities & Local Governmen",26/10/2022,RS144938,1327.00,0.00,Payment recovery A/C 100167 DELTA-1590311 rs-la-2021-22/Rough Sleeping LA Grant/Wyre Borough Council (Doc 3700179231),Miscellaneous Debits,01600
Wyre Council,http://opendatacommunities.org/doc/district-council/wyre,30/10/2022,Resources,Current Liabilities,130C,"Department for Business, Energy & Industrial Strat",03/10/2022,RS144409,7037.52,0.00,ARG22321   Wyre Council,Miscellaneous Debits,01600
Wyre Council,http://opendatacommunities.org/doc/district-council/wyre,30/10/2022,Resources,Current Assets,130B,SME HCI Ltd,13/10/2022,RS144637,1648.70,0.00,Invoice Number:  139744,Miscellaneous Debits,01600
Wyre Council,http://opendatacommunities.org/doc/district-council/wyre,30/10/2022,Resources,Current Assets,130B,SME HCI Ltd,13/10/2022,RS144638,1089.70,0.00,Invoice Number: 139310,Miscellaneous Debits,01600
Wyre Council,http://opendatacommunities.org/doc/district-council/wyre,30/10/2022,Resources,Cultural and Related Services,132A,VODAFONE LIMITED,03/10/2022,RS143932,4.00,0.00,"Mobile Phone Charges, invoice dated August",Mobile Devices,43103
Wyre Council,http://opendatacommunities.org/doc/district-council/wyre,30/10/2022,Resources,Support Services,135B,VODAFONE LIMITED,03/10/2022,RS143932,61.81,0.00,"Mobile Phone Charges, invoice dated August",Mobile Devices,43103
Wyre Council,http://opendatacommunities.org/doc/district-council/wyre,30/10/2022,Resources,Support Services,135B,VODAFONE LIMITED,03/10/2022,RS143932,102.86,0.00,"Mobile Phone Charges, invoice dated August",Mobile Devices,43103
Wyre Council,http://opendatacommunities.org/doc/district-council/wyre,30/10/2022,Resources,Support Services,135B,VODAFONE LIMITED,03/10/2022,RS143932,20.00,0.00,"Mobile Phone Charges, invoice dated August",Mobile Devices,43103
Wyre Council,http://opendatacommunities.org/doc/district-council/wyre,30/10/2022,Resources,Support Services,135B,VODAFONE LIMITED,03/10/2022,RS143932,133.03,0.00,"Mobile Phone Charges, invoice dated August",Mobile Devices,43103
Wyre Council,http://opendatacommunities.org/doc/district-council/wyre,30/10/2022,Resources,Cultural and Related Services,132A,VODAFONE LIMITED,03/10/2022,RS143932,16.74,0.00,"Mobile Phone Charges, invoice dated August",Mobile Devices,43103
Wyre Council,http://opendatacommunities.org/doc/district-council/wyre,30/10/2022,Resources,Environmental Services,132B,VODAFONE LIMITED,03/10/2022,RS143932,37.00,0.00,"Mobile Phone Charges, invoice dated August",Mobile Devices,43103
Wyre Council,http://opendatacommunities.org/doc/district-council/wyre,30/10/2022,Resources,Planning and Development Servs,132C,VODAFONE LIMITED,03/10/2022,RS143932,12.00,0.00,"Mobile Phone Charges, invoice dated August",Mobile Devices,43103
Wyre Council,http://opendatacommunities.org/doc/district-council/wyre,30/10/2022,Resources,Housing General Fund,134A,VODAFONE LIMITED,03/10/2022,RS143932,64.77,0.00,"Mobile Phone Charges, invoice dated August",Mobile Devices,43103
Wyre Council,http://opendatacommunities.org/doc/district-council/wyre,30/10/2022,Resources,Housing General Fund,134A,VODAFONE LIMITED,03/10/2022,RS143932,4.00,0.00,"Mobile Phone Charges, invoice dated August",Mobile Devices,43103
Wyre Council,http://opendatacommunities.org/doc/district-council/wyre,30/10/2022,Resources,Support Services,135B,VODAFONE LIMITED,03/10/2022,RS143932,36.00,0.00,"Mobile Phone Charges, invoice dated August",Mobile Devices,43103
Wyre Council,http://opendatacommunities.org/doc/district-council/wyre,30/10/2022,Resources,Support Services,135B,VODAFONE LIMITED,03/10/2022,RS143932,256.48,0.00,"Mobile Phone Charges, invoice dated August",Mobile Devices,43103
Wyre Council,http://opendatacommunities.org/doc/district-council/wyre,30/10/2022,Resources,Support Services,135B,VODAFONE LIMITED,03/10/2022,RS143932,40.74,0.00,"Mobile Phone Charges, invoice dated August",Mobile Devices,43103
Wyre Council,http://opendatacommunities.org/doc/district-council/wyre,30/10/2022,Resources,Support Services,135B,VODAFONE LIMITED,03/10/2022,RS143932,53.00,0.00,"Mobile Phone Charges, invoice dated August",Mobile Devices,43103
Wyre Council,http://opendatacommunities.org/doc/district-council/wyre,30/10/2022,Resources,Support Services,135B,VODAFONE LIMITED,03/10/2022,RS143932,12.00,0.00,"Mobile Phone Charges, invoice dated August",Mobile Devices,43103
Wyre Council,http://opendatacommunities.org/doc/district-council/wyre,30/10/2022,Resources,Support Services,135B,VODAFONE LIMITED,03/10/2022,RS143932,105.10,0.00,"Mobile Phone Charges, invoice dated August",Mobile Devices,43103
Wyre Council,http://opendatacommunities.org/doc/district-council/wyre,30/10/2022,Resources,Corporate and Democratic Core,131A,VODAFONE LIMITED,03/10/2022,RS143932,12.00,0.00,"Mobile Phone Charges, invoice dated August",Mobile Devices,43103
Wyre Council,http://opendatacommunities.org/doc/district-council/wyre,30/10/2022,Resources,Support Services,135B,VODAFONE LIMITED,03/10/2022,RS143932,16.10,0.00,"Mobile Phone Charges, invoice dated August",Mobile Devices,43103
Wyre Council,http://opendatacommunities.org/doc/district-council/wyre,30/10/2022,Resources,Support Services,135B,VODAFONE LIMITED,03/10/2022,RS143932,188.74,0.00,"Mobile Phone Charges, invoice dated August",Mobile Devices,43103
Wyre Council,http://opendatacommunities.org/doc/district-council/wyre,30/10/2022,Resources,Support Services,135B,VODAFONE LIMITED,03/10/2022,RS143932,12.00,0.00,"Mobile Phone Charges, invoice dated August",Mobile Devices,43103
Wyre Council,http://opendatacommunities.org/doc/district-council/wyre,30/10/2022,Resources,Support Services,135B,VODAFONE LIMITED,03/10/2022,RS143932,12.00,0.00,"Mobile Phone Charges, invoice dated August",Mobile Devices,43103
Wyre Council,http://opendatacommunities.org/doc/district-council/wyre,30/10/2022,Resources,Environmental Services,132B,VODAFONE LIMITED,03/10/2022,RS143932,88.60,0.00,"Mobile Phone Charges, invoice dated August",Mobile Devices,43103
Wyre Council,http://opendatacommunities.org/doc/district-council/wyre,30/10/2022,Resources,Central Services to the Public,131C,VODAFONE LIMITED,03/10/2022,RS143932,12.00,0.00,"Mobile Phone Charges, invoice dated August",Mobile Devices,43103
Wyre Council,http://opendatacommunities.org/doc/district-council/wyre,30/10/2022,Resources,Support Services,135B,VODAFONE LIMITED,03/10/2022,RS143932,12.00,0.00,"Mobile Phone Charges, invoice dated August",Mobile Devices,43103
Wyre Council,http://opendatacommunities.org/doc/district-council/wyre,30/10/2022,Resources,Support Services,135B,VODAFONE LIMITED,03/10/2022,RS143932,187.99,0.00,"Mobile Phone Charges, invoice dated August",Mobile Devices,43103
Wyre Council,http://opendatacommunities.org/doc/district-council/wyre,30/10/2022,Resources,Support Services,135B,VODAFONE LIMITED,03/10/2022,RS143932,50.84,0.00,"Mobile Phone Charges, invoice dated August",Mobile Devices,43103
Wyre Council,http://opendatacommunities.org/doc/district-council/wyre,30/10/2022,Resources,Central Services to the Public,131C,VODAFONE LIMITED,03/10/2022,RS143932,12.31,0.00,"Mobile Phone Charges, invoice dated August",Mobile Devices,43103
Wyre Council,http://opendatacommunities.org/doc/district-council/wyre,30/10/2022,Resources,Support Services,135B,VODAFONE LIMITED,03/10/2022,RS143932,12.00,0.00,"Mobile Phone Charges, invoice dated August",Mobile Devices,43103
Wyre Council,http://opendatacommunities.org/doc/district-council/wyre,30/10/2022,Resources,Support Services,135B,VODAFONE LIMITED,03/10/2022,RS143932,12.00,0.00,"Mobile Phone Charges, invoice dated August",Mobile Devices,43103
Wyre Council,http://opendatacommunities.org/doc/district-council/wyre,30/10/2022,Resources,Cultural and Related Services,132A,VODAFONE LIMITED,03/10/2022,RS143932,33.00,0.00,"Mobile Phone Charges, invoice dated August",Mobile Devices,43103
Wyre Council,http://opendatacommunities.org/doc/district-council/wyre,30/10/2022,Resources,Support Services,135B,VODAFONE LIMITED,03/10/2022,RS143932,68.74,0.00,"Mobile Phone Charges, invoice dated August",Mobile Devices,43103
Wyre Council,http://opendatacommunities.org/doc/district-council/wyre,30/10/2022,Resources,Support Services,135B,VODAFONE LIMITED,03/10/2022,RS143932,12.00,0.00,"Mobile Phone Charges, invoice dated August",Mobile Devices,43103
Wyre Council,http://opendatacommunities.org/doc/district-council/wyre,30/10/2022,People and Places,Highways,133B,Andrew Signs LTD,12/10/2022,PE144603,138.50,0.00,payment in full of invoice INV-1299,Naming of Streets,28023
Wyre Council,http://opendatacommunities.org/doc/district-council/wyre,30/10/2022,People and Places,Highways,133B,Andrew Signs LTD,26/10/2022,PE144953,151.66,0.00,100 x screw banding fixings,Naming of Streets,28023
Wyre Council,http://opendatacommunities.org/doc/district-council/wyre,30/10/2022,People and Places,Highways,133B,John Fausset LTD,11/10/2022,PE144584,620.00,0.00,to supply goods already received (10 road signposts) as per invoice 12910,Naming of Streets,28023
Wyre Council,http://opendatacommunities.org/doc/district-council/wyre,30/10/2022,Resources,Housing General Fund,134A,LOCATA HOUSING SERVICES LTD,21/10/2022,RS144739,8000.00,0.00,"Year 3 Costs December 21, November 22",New Burden`s Grant - IT,46847
Wyre Council,http://opendatacommunities.org/doc/district-council/wyre,30/10/2022,Finance,Current Assets,130B,,19/10/2022,WPST00079699,1704.91,0.00,nndr refunds,NNDR Refunds,01200
Wyre Council,http://opendatacommunities.org/doc/district-council/wyre,30/10/2022,Finance,Current Assets,130B,,11/10/2022,WPST00077541,1209.05,0.00,nndr refunds 7/10,NNDR Refunds,01200
Wyre Council,http://opendatacommunities.org/doc/district-council/wyre,30/10/2022,Finance,Current Assets,130B,,26/10/2022,WPST00080403,135676.44,0.00,nndr refunds,NNDR Refunds,01200
Wyre Council,http://opendatacommunities.org/doc/district-council/wyre,30/10/2022,Resources,Support Services,135B,People Asset Management LTD,07/10/2022,RS144490,714.00,0.00,Monthly fee (Aug to March 22,Occupational Health Fees,18007
Wyre Council,http://opendatacommunities.org/doc/district-council/wyre,30/10/2022,Resources,Support Services,135B,People Asset Management LTD,07/10/2022,RS144490,493.45,0.00,Monthly fee (Aug to March 22,Occupational Health Fees,18007
Wyre Council,http://opendatacommunities.org/doc/district-council/wyre,30/10/2022,Resources,Support Services,135B,People Asset Management LTD,17/10/2022,PE143180,89.25,0.00,OH Services July 2022,Occupational Health Fees,18007
Wyre Council,http://opendatacommunities.org/doc/district-council/wyre,30/10/2022,Resources,Support Services,135B,People Asset Management LTD,17/10/2022,PE143180,20.95,0.00,OH Services July 2022,Occupational Health Fees,18007
Wyre Council,http://opendatacommunities.org/doc/district-council/wyre,30/10/2022,Resources,Support Services,135B,People Asset Management LTD,27/10/2022,RS144963,-990.08,0.00,Re: RS144422 Monthly OH Sercvices Oct 22,Occupational Health Fees,18007
Wyre Council,http://opendatacommunities.org/doc/district-council/wyre,30/10/2022,Resources,Support Services,135B,People Asset Management LTD,27/10/2022,RS144962,-990.08,0.00,Re: RS143728 Monthly OH Service Charges Sep 22,Occupational Health Fees,18007
Wyre Council,http://opendatacommunities.org/doc/district-council/wyre,30/10/2022,Resources,Support Services,135B,People Asset Management LTD,27/10/2022,RS144422,990.08,0.00,Monthly OH Services Oct 22 credited RS144963,Occupational Health Fees,18007
Wyre Council,http://opendatacommunities.org/doc/district-council/wyre,30/10/2022,Resources,Support Services,135B,People Asset Management LTD,27/10/2022,RS143728,990.08,0.00,Monthly OH Services Sep 22 credited RS144962,Occupational Health Fees,18007
Wyre Council,http://opendatacommunities.org/doc/district-council/wyre,30/10/2022,Resources,Support Services,135B,Karen Openshaw Consultancy,06/10/2022,RS144528,520.00,0.00,To provision of Listening Ear and Mindfulness sessions 1 Apr 2022 - 31 March 2023,Occupational Health Fees,18007
Wyre Council,http://opendatacommunities.org/doc/district-council/wyre,30/10/2022,Resources,Support Services,135B,Karen Openshaw Consultancy,24/10/2022,RS144830,520.00,0.00,To provision of Listening Ear and Mindfulness sessions 1 Apr 2022 - 31 March 2023,Occupational Health Fees,18007
Wyre Council,http://opendatacommunities.org/doc/district-council/wyre,30/10/2022,People and Places,Planning and Development Servs,132C,McGann Boxing and Fitness,03/10/2022,PE144398,54.00,0.00,Attendance at community boxing provision,Other Contributions,45201
Wyre Council,http://opendatacommunities.org/doc/district-council/wyre,30/10/2022,People and Places,Planning and Development Servs,132C,McGann Boxing and Fitness,03/10/2022,PE144399,600.00,0.00,"Diversionary activity to address youth related anti-social behaviour. 8 week boxing sessions8 x 1.5hr group training (5,12,19,26 Aug 2,9,16,23 Sept)",Other Contributions,45201
Wyre Council,http://opendatacommunities.org/doc/district-council/wyre,30/10/2022,Finance,Collection Fund Revenue Accts,138A,,31/10/2022,WPST00080907,194942.00,0.00,LCC 22/23 Business Rates,Other Local Authorities,52000
Wyre Council,http://opendatacommunities.org/doc/district-council/wyre,30/10/2022,Finance,Collection Fund Revenue Accts,138A,LANCASHIRE FIRE AUTHORITY,31/10/2022,WPST00080911,21660.00,0.00,Lancashire Fire22/23 Business Rates,Other Local Authorities,52000
Wyre Council,http://opendatacommunities.org/doc/district-council/wyre,30/10/2022,Finance,Collection Fund Revenue Accts,138A,,31/10/2022,WPST00080914,21250.00,0.00,PCC 21/22 Council Tax Deficit,Other Local Authorities,52000
Wyre Council,http://opendatacommunities.org/doc/district-council/wyre,30/10/2022,Finance,Collection Fund Revenue Accts,138A,LANCASHIRE COUNTY COUNCIL,31/10/2022,WPST00080915,5754977.00,0.00,Lancashire County Council22/23 Council,Other Local Authorities,52000
Wyre Council,http://opendatacommunities.org/doc/district-council/wyre,30/10/2022,Finance,Collection Fund Revenue Accts,138A,,31/10/2022,WPST00080913,898615.00,0.00,PCC 22/23 Council Tax,Other Local Authorities,52000
Wyre Council,http://opendatacommunities.org/doc/district-council/wyre,30/10/2022,Finance,Collection Fund Revenue Accts,138A,,31/10/2022,WPST00080906,136649.00,0.00,LCC 21/22 Council Tax Deficit,Other Local Authorities,52000
Wyre Council,http://opendatacommunities.org/doc/district-council/wyre,30/10/2022,Finance,Collection Fund Revenue Accts,138A,LANCASHIRE FIRE AUTHORITY,31/10/2022,WPST00080909,293661.00,0.00,fire 22/23 Council Tax,Other Local Authorities,52000
Wyre Council,http://opendatacommunities.org/doc/district-council/wyre,30/10/2022,Finance,Collection Fund Revenue Accts,138A,,31/10/2022,WPST00080910,6782.00,0.00,Fire 21/22 Council Tax Deficit,Other Local Authorities,52000
Wyre Council,http://opendatacommunities.org/doc/district-council/wyre,30/10/2022,Resources,Support Services,135B,Lancaster City Council,04/10/2022,RS144413,12931.96,0.00,40% Recharge to Wyre BC for ICT Manager October 2020 to March 2021,Other Local Authorities,52000
Wyre Council,http://opendatacommunities.org/doc/district-council/wyre,30/10/2022,People and Places,Parking Services,133F,Park Now Limited,05/10/2022,PE144204,676.03,0.00,RingGo fees 1 April 2022 - 31 March 2023 - service charges - text summary charges - text reminder charges - card processing fees,Other Parking Fees and Commission,42622
Wyre Council,http://opendatacommunities.org/doc/district-council/wyre,30/10/2022,People and Places,Parking Services,133F,Park Now Limited,24/10/2022,PE144815,500.92,0.00,RingGo fees 1 April 2022 - 31 March 2023- service charges- text summary charges- text reminder charges- card processing fees,Other Parking Fees and Commission,42622
Wyre Council,http://opendatacommunities.org/doc/district-council/wyre,30/10/2022,People and Places,Planning and Development Servs,132C,A1 Streamline Road,17/10/2022,PE144704,6991.34,0.00,"works to Copse Road Depot, Fleetwood as per quote EN13044 to include thermoplastic screed to the concrete surfacing and Tex Band Bitumen seal to joints.","Paths, Roads and Car Park Mtnce Annual",28050
Wyre Council,http://opendatacommunities.org/doc/district-council/wyre,30/10/2022,Finance,Corporate and Democratic Core,131A,LANCASHIRE COUNTY COUNCIL,04/10/2022,WPST00076626,15362.89,0.00,lcc co 6510034477,Pension Increase Act Payments,19004
Wyre Council,http://opendatacommunities.org/doc/district-council/wyre,30/10/2022,People and Places,Support Services,135B,Allstar Business Solutions LTD,20/10/2022,PE144458,113.38,0.00,Fuel Charges for September,Petrol,30511
Wyre Council,http://opendatacommunities.org/doc/district-council/wyre,30/10/2022,People and Places,Support Services,135B,Allstar Business Solutions LTD,20/10/2022,PE144458,123.66,0.00,Fuel Charges for September,Petrol,30511
Wyre Council,http://opendatacommunities.org/doc/district-council/wyre,30/10/2022,People and Places,Support Services,135B,Allstar Business Solutions LTD,20/10/2022,PE144458,90.23,0.00,Fuel Charges for September,Petrol,30511
Wyre Council,http://opendatacommunities.org/doc/district-council/wyre,30/10/2022,People and Places,Support Services,135B,Allstar Business Solutions LTD,20/10/2022,PE144458,55.55,0.00,Fuel Charges for September,Petrol,30511
Wyre Council,http://opendatacommunities.org/doc/district-council/wyre,30/10/2022,People and Places,Support Services,135B,Allstar Business Solutions LTD,20/10/2022,PE144458,99.77,0.00,Fuel Charges for September,Petrol,30511
Wyre Council,http://opendatacommunities.org/doc/district-council/wyre,30/10/2022,People and Places,Cultural and Related Services,132A,Schneider Electric LTD,13/10/2022,PE144611,881.00,0.00,Garstang Leisure Centre: maintenance for the period 01/10/22 to 30/09/23,Planned Building Maintenance,21000
Wyre Council,http://opendatacommunities.org/doc/district-council/wyre,30/10/2022,People and Places,Cultural and Related Services,132A,COWLEY FIRE,31/10/2022,PE144600,734.84,0.00,Marine Hall: Serivce fire equipment,Planned Building Maintenance,21000
Wyre Council,http://opendatacommunities.org/doc/district-council/wyre,30/10/2022,People and Places,Cultural and Related Services,132A,COWLEY FIRE,07/10/2022,PE144417,39.13,0.00,Jean Stansfield Park: service fire equipment,Planned Building Maintenance,21000
Wyre Council,http://opendatacommunities.org/doc/district-council/wyre,30/10/2022,People and Places,Cultural and Related Services,132A,COWLEY FIRE,06/10/2022,PE143926,697.63,0.00,"re: Riverside Rooms, Stanah Park, Thornton: Service fire equipment",Planned Building Maintenance,21000
Wyre Council,http://opendatacommunities.org/doc/district-council/wyre,30/10/2022,People and Places,Cultural and Related Services,132A,COWLEY FIRE,06/10/2022,PE143925,25.95,0.00,Riverside Rooms Stanah Park Thronton: fire signs,Planned Building Maintenance,21000
Wyre Council,http://opendatacommunities.org/doc/district-council/wyre,30/10/2022,People and Places,Cultural and Related Services,132A,COWLEY FIRE,06/10/2022,PE143974,263.64,0.00,"Rossal Point Tower, Fleetwood, Lancs, FY7 8PG: service fire extinguishers",Planned Building Maintenance,21000
Wyre Council,http://opendatacommunities.org/doc/district-council/wyre,30/10/2022,People and Places,Cultural and Related Services,132A,COWLEY FIRE,06/10/2022,PE144321,494.11,0.00,"Thornton Little Theatre, Thornton, FY5 3SZ: service fire equipment",Planned Building Maintenance,21000
Wyre Council,http://opendatacommunities.org/doc/district-council/wyre,30/10/2022,Finance,Central Services to the Public,131C,SANTANDER,07/10/2022,WPST00077061,831.50,0.00,santander uk bank charges 5/10,Plastic Cards Processing Fees,42608
Wyre Council,http://opendatacommunities.org/doc/district-council/wyre,30/10/2022,People and Places,Support Services,135B,Wicksteed Leisure LTD,10/10/2022,PE144562,172.54,0.00,Carriage,Playground Equipment,40201
Wyre Council,http://opendatacommunities.org/doc/district-council/wyre,30/10/2022,People and Places,Support Services,135B,Wicksteed Leisure LTD,10/10/2022,PE144562,984.00,0.00,3720-040Seat For Play Table,Playground Equipment,40201
Wyre Council,http://opendatacommunities.org/doc/district-council/wyre,30/10/2022,People and Places,Support Services,135B,Wicksteed Leisure LTD,10/10/2022,PE144562,52.80,0.00,2176-153M8 X 30 Pentagon Skt Button Head Screw,Playground Equipment,40201
Wyre Council,http://opendatacommunities.org/doc/district-council/wyre,30/10/2022,People and Places,Support Services,135B,Wicksteed Leisure LTD,10/10/2022,PE144562,23.76,0.00,2191-009M8 Binx Nut,Playground Equipment,40201
Wyre Council,http://opendatacommunities.org/doc/district-council/wyre,30/10/2022,People and Places,Support Services,135B,Wicksteed Leisure LTD,10/10/2022,PE144562,23.04,0.00,2613-015M8 Protective Nut Cap,Playground Equipment,40201
Wyre Council,http://opendatacommunities.org/doc/district-council/wyre,30/10/2022,People and Places,Support Services,135B,Wicksteed Leisure LTD,10/10/2022,PE144562,13.00,0.00,2372-003Pentagon Key (M8),Playground Equipment,40201
Wyre Council,http://opendatacommunities.org/doc/district-council/wyre,30/10/2022,People and Places,Support Services,135B,Wicksteed Leisure LTD,10/10/2022,PE144562,60.50,0.00,For the Teacup Twister2546-009Bearing (33206),Playground Equipment,40201
Wyre Council,http://opendatacommunities.org/doc/district-council/wyre,30/10/2022,People and Places,Support Services,135B,Wicksteed Leisure LTD,10/10/2022,PE144562,31.90,0.00,2541-132Nilos Ring 33206 JV,Playground Equipment,40201
Wyre Council,http://opendatacommunities.org/doc/district-council/wyre,30/10/2022,People and Places,Support Services,135B,Wicksteed Leisure LTD,10/10/2022,PE144562,718.00,0.00,For the Play Table3720-039Toddler`s Table Top,Playground Equipment,40201
Wyre Council,http://opendatacommunities.org/doc/district-council/wyre,30/10/2022,People and Places,Support Services,135B,Wicksteed Leisure LTD,10/10/2022,PE144562,92.40,0.00,2546-010Bearing (33012),Playground Equipment,40201
Wyre Council,http://opendatacommunities.org/doc/district-council/wyre,30/10/2022,People and Places,Support Services,135B,Wicksteed Leisure LTD,10/10/2022,PE144562,27.50,0.00,2541-126Nilos Ring 33012 AV,Playground Equipment,40201
Wyre Council,http://opendatacommunities.org/doc/district-council/wyre,30/10/2022,People and Places,Support Services,135B,Wicksteed Leisure LTD,10/10/2022,PE144562,2.97,0.00,2611-031Plastic Dome Cap and Base - Black,Playground Equipment,40201
Wyre Council,http://opendatacommunities.org/doc/district-council/wyre,30/10/2022,People and Places,Support Services,135B,GB  Sport & Leisure UK LTD,27/10/2022,PE144939,42.50,0.00,SP-11-110 Rubber Mulch - 20kgs - Earth Tone 2 - Dark Brown,Playground Equipment,40201
Wyre Council,http://opendatacommunities.org/doc/district-council/wyre,30/10/2022,People and Places,Support Services,135B,GB  Sport & Leisure UK LTD,27/10/2022,PE144939,266.00,0.00,SP-02-062 Birds Nest Seat Cantilever Chains - 4 x 8mm sheradised chain c/w 8mm stainless steel shackles and large top link,Playground Equipment,40201
Wyre Council,http://opendatacommunities.org/doc/district-council/wyre,30/10/2022,People and Places,Support Services,135B,GB  Sport & Leisure UK LTD,27/10/2022,PE144939,115.70,0.00,Delivery,Playground Equipment,40201
Wyre Council,http://opendatacommunities.org/doc/district-council/wyre,30/10/2022,People and Places,Support Services,135B,GB  Sport & Leisure UK LTD,27/10/2022,PE144939,230.00,0.00,SP-43-007U Fast Cure Resin 5kg,Playground Equipment,40201
Wyre Council,http://opendatacommunities.org/doc/district-council/wyre,30/10/2022,People and Places,Support Services,135B,GB  Sport & Leisure UK LTD,27/10/2022,PE144939,165.00,0.00,SP-34-001C Rope Repair Connector ? Single,Playground Equipment,40201
Wyre Council,http://opendatacommunities.org/doc/district-council/wyre,30/10/2022,People and Places,Support Services,135B,GB  Sport & Leisure UK LTD,27/10/2022,PE144939,163.00,0.00,SP-02-022 8mm Sheradised Chain - 25m,Playground Equipment,40201
Wyre Council,http://opendatacommunities.org/doc/district-council/wyre,30/10/2022,People and Places,Support Services,135B,GB  Sport & Leisure UK LTD,27/10/2022,PE144939,94.00,0.00,SP-02-022A 25m x 6mm Galvanised Chain,Playground Equipment,40201
Wyre Council,http://opendatacommunities.org/doc/district-council/wyre,30/10/2022,People and Places,Support Services,135B,GB  Sport & Leisure UK LTD,27/10/2022,PE144939,100.00,0.00,SP-05-002B  25m x 10mm Aerial Runway Cable with Thimble Eye at one end,Playground Equipment,40201
Wyre Council,http://opendatacommunities.org/doc/district-council/wyre,30/10/2022,People and Places,Support Services,135B,Playdale Playgrounds LTD,06/10/2022,PE144523,691.40,0.00,PSL008/O Tube T sections 770mm dia. 1058mm - orange,Playground Equipment,40201
Wyre Council,http://opendatacommunities.org/doc/district-council/wyre,30/10/2022,People and Places,Support Services,135B,Playdale Playgrounds LTD,06/10/2022,PE144523,85.00,0.00,Delivery,Playground Equipment,40201
Wyre Council,http://opendatacommunities.org/doc/district-council/wyre,30/10/2022,Resources,Central Services to the Public,131C,Royal Mail Group PLC,04/10/2022,RS144411,87.50,0.00,FY5 7PU mail collection weekday monthly fee,Postage,43000
Wyre Council,http://opendatacommunities.org/doc/district-council/wyre,30/10/2022,Resources,Central Services to the Public,131C,Royal Mail Group PLC,24/10/2022,RS144835,87.50,0.00,Royal Mail Monthly November Licence Fee Mail Collection Weekday,Postage,43000
Wyre Council,http://opendatacommunities.org/doc/district-council/wyre,30/10/2022,Resources,Central Services to the Public,131C,Royal Mail Group PLC,28/10/2022,RS142912,87.50,0.00,Royal Mail Monthly Licence Fee August 2022 Collection weekday,Postage,43000
Wyre Council,http://opendatacommunities.org/doc/district-council/wyre,30/10/2022,Resources,Central Services to the Public,131C,Royal Mail Group PLC,04/10/2022,RS144410,773.34,0.00,20/08 response plus service: 23/08 postal voting additional selections; postal vote licence fee,Postage,43000
Wyre Council,http://opendatacommunities.org/doc/district-council/wyre,30/10/2022,Resources,Housing General Fund,134A,Critiqom LTD,06/10/2022,RS144476,124.37,0.00,Benefit Notifications,Postage,43000
Wyre Council,http://opendatacommunities.org/doc/district-council/wyre,30/10/2022,Resources,Housing General Fund,134A,Critiqom LTD,06/10/2022,RS144475,37.11,0.00,Benefit Notifications,Postage,43000
Wyre Council,http://opendatacommunities.org/doc/district-council/wyre,30/10/2022,Resources,Support Services,135B,Critiqom LTD,06/10/2022,RS144475,585.72,0.00,IQ post - CC,Postage,43000
Wyre Council,http://opendatacommunities.org/doc/district-council/wyre,30/10/2022,Resources,Support Services,135B,Critiqom LTD,06/10/2022,RS144475,322.19,0.00,IQ Post - Planning,Postage,43000
Wyre Council,http://opendatacommunities.org/doc/district-council/wyre,30/10/2022,Resources,Central Services to the Public,131C,Critiqom LTD,06/10/2022,RS144476,2297.37,0.00,Daily Bills,Postage,43000
Wyre Council,http://opendatacommunities.org/doc/district-council/wyre,30/10/2022,Resources,Support Services,135B,Critiqom LTD,14/10/2022,RS144686,20.00,0.00,Data Quality Infractions Sep 22,Postage,43000
Wyre Council,http://opendatacommunities.org/doc/district-council/wyre,30/10/2022,Resources,Support Services,135B,Critiqom LTD,06/10/2022,RS144475,108.91,0.00,IQ post - Off Serv Admin,Postage,43000
Wyre Council,http://opendatacommunities.org/doc/district-council/wyre,30/10/2022,Resources,Support Services,135B,Critiqom LTD,06/10/2022,RS144475,4.25,0.00,IQ post - Recovery,Postage,43000
Wyre Council,http://opendatacommunities.org/doc/district-council/wyre,30/10/2022,Resources,Support Services,135B,Critiqom LTD,06/10/2022,RS144476,310.62,0.00,Council Tax Reminders,Postage,43000
Wyre Council,http://opendatacommunities.org/doc/district-council/wyre,30/10/2022,Resources,Support Services,135B,Critiqom LTD,06/10/2022,RS144476,16.14,0.00,NNDR Reminders,Postage,43000
Wyre Council,http://opendatacommunities.org/doc/district-council/wyre,30/10/2022,Resources,Support Services,135B,Critiqom LTD,06/10/2022,RS144476,185.54,0.00,Council Tax Summons,Postage,43000
Wyre Council,http://opendatacommunities.org/doc/district-council/wyre,30/10/2022,Resources,Support Services,135B,Critiqom LTD,06/10/2022,RS144476,7.72,0.00,NNDR Summons,Postage,43000
Wyre Council,http://opendatacommunities.org/doc/district-council/wyre,30/10/2022,Resources,Support Services,135B,Critiqom LTD,06/10/2022,RS144475,116.63,0.00,Ctax Reminders,Postage,43000
Wyre Council,http://opendatacommunities.org/doc/district-council/wyre,30/10/2022,Resources,Support Services,135B,Critiqom LTD,06/10/2022,RS144475,3.04,0.00,NNDR Reminders,Postage,43000
Wyre Council,http://opendatacommunities.org/doc/district-council/wyre,30/10/2022,Resources,Support Services,135B,Critiqom LTD,06/10/2022,RS144475,79.39,0.00,Ctax Summons,Postage,43000
Wyre Council,http://opendatacommunities.org/doc/district-council/wyre,30/10/2022,Resources,Support Services,135B,Critiqom LTD,06/10/2022,RS144475,2.64,0.00,NNDR Summons,Postage,43000
Wyre Council,http://opendatacommunities.org/doc/district-council/wyre,30/10/2022,Resources,Central Services to the Public,131C,Critiqom LTD,06/10/2022,RS144475,666.22,0.00,Daily Bills,Postage,43000
Wyre Council,http://opendatacommunities.org/doc/district-council/wyre,30/10/2022,Resources,Central Services to the Public,131C,Critiqom LTD,06/10/2022,RS144475,404.18,0.00,IQ post - Electoral,Postage,43000
Wyre Council,http://opendatacommunities.org/doc/district-council/wyre,30/10/2022,People and Places,Environmental Services,132B,PermiServ Ltd,07/10/2022,PE144527,245.00,0.00,"Production, postage and management of green waste subscription stickers/portal as per Lancashire agreement.Please leave PO open and it will be drawn off each month",Postage,43000
Wyre Council,http://opendatacommunities.org/doc/district-council/wyre,30/10/2022,People and Places,Environmental Services,132B,PermiServ Ltd,07/10/2022,PE144541,562.52,0.00,"Production, postage and management of green waste subscription stickers/portal as per Lancashire agreement.Please leave PO open and it will be drawn off each month",Postage,43000
Wyre Council,http://opendatacommunities.org/doc/district-council/wyre,30/10/2022,Resources,Central Services to the Public,131C,Post Office Limited,05/10/2022,RS144450,219.20,0.00,payout scheme 065 transactions 1st to 31st August 22,Postage,43000
Wyre Council,http://opendatacommunities.org/doc/district-council/wyre,30/10/2022,Resources,Central Services to the Public,131C,Post Office Limited,24/10/2022,RS144836,840.20,0.00,Payout Scheme 065 1st to 30th September 2022,Postage,43000
Wyre Council,http://opendatacommunities.org/doc/district-council/wyre,30/10/2022,Resources,Central Services to the Public,131C,Print Image Network LTD,05/10/2022,RS144491,430.00,0.00,Wyre 2nd Class Return Envelopes,Printing,42000
Wyre Council,http://opendatacommunities.org/doc/district-council/wyre,30/10/2022,Resources,Central Services to the Public,131C,Print Image Network LTD,21/10/2022,RS144752,1623.00,0.00,Preesall Ward By-Election 18 August 2022  Postal Votes printing,Printing,42000
Wyre Council,http://opendatacommunities.org/doc/district-council/wyre,30/10/2022,Resources,Central Services to the Public,131C,Critiqom LTD,12/10/2022,RS144475,1400.00,0.00,Council Tax Envelopes,Printing,42000
Wyre Council,http://opendatacommunities.org/doc/district-council/wyre,30/10/2022,Finance,Housing General Fund,134A,,07/10/2022,WPST00077064,9088.58,0.00,homes for ukraine,Private Contractors,57000
Wyre Council,http://opendatacommunities.org/doc/district-council/wyre,30/10/2022,Finance,Housing General Fund,134A,,18/10/2022,WPST00079577,1400.00,0.00,HOMES FOR UKRAINE PAYMENT 13/10,Private Contractors,57000
Wyre Council,http://opendatacommunities.org/doc/district-council/wyre,30/10/2022,People and Places,Parking Services,133F,Lancashire County Council,27/10/2022,PE144950,-1463.45,0.00,Re: PE144950: Back office and tec levy charges 13/09/21,Private Contractors,57000
Wyre Council,http://opendatacommunities.org/doc/district-council/wyre,30/10/2022,People and Places,Parking Services,133F,Lancashire County Council,27/10/2022,PE143906,1463.45,0.00,re: PE144950: Back office and tec levy charges 13/09/21,Private Contractors,57000
Wyre Council,http://opendatacommunities.org/doc/district-council/wyre,30/10/2022,People and Places,Parking Services,133F,NSL Services Group,06/10/2022,PE144525,4578.77,0.00,Variable Fee Car Park Enforcement by NSL Sep  22,Private Contractors,57000
Wyre Council,http://opendatacommunities.org/doc/district-council/wyre,30/10/2022,People and Places,Parking Services,133F,CHIPSIDE LTD,06/10/2022,PE144467,30.00,0.00,Provide 2 no 500mb SiMS for Wyre handheld units 1 April 2022 - 31 March 2023,Private Contractors,57000
Wyre Council,http://opendatacommunities.org/doc/district-council/wyre,30/10/2022,People and Places,Parking Services,133F,CHIPSIDE LTD,07/10/2022,PE144464,51.45,0.00,Wyre Council parking - Bank Transaction Fees 1 April 2022 - 31 March 2023,Private Contractors,57000
Wyre Council,http://opendatacommunities.org/doc/district-council/wyre,30/10/2022,People and Places,Parking Services,133F,CHIPSIDE LTD,31/10/2022,PE144352,43.30,0.00,Banking transaction fees Jan 22,Private Contractors,57000
Wyre Council,http://opendatacommunities.org/doc/district-council/wyre,30/10/2022,People and Places,Parking Services,133F,CHIPSIDE LTD,31/10/2022,PE144517,72.55,0.00,Wyre Council parking - Bank Transaction Fees 1 April 2022 - 31 March 2023,Private Contractors,57000
Wyre Council,http://opendatacommunities.org/doc/district-council/wyre,30/10/2022,People and Places,Parking Services,133F,CHIPSIDE LTD,27/10/2022,PE144990,371.20,0.00,10/09/21 - DVLA - new client set up fee,Private Contractors,57000
Wyre Council,http://opendatacommunities.org/doc/district-council/wyre,30/10/2022,People and Places,Parking Services,133F,CHIPSIDE LTD,25/10/2022,PE144916,672.27,0.00,Notice processing services Sep 22,Private Contractors,57000
Wyre Council,http://opendatacommunities.org/doc/district-council/wyre,30/10/2022,People and Places,Planning and Development Servs,132C,A T Graphics LTD,27/10/2022,PE144992,350.00,0.00,Full Page Coach Tours Ad - August,Promotions - General,46104
Wyre Council,http://opendatacommunities.org/doc/district-council/wyre,30/10/2022,People and Places,Planning and Development Servs,132C,A T Graphics LTD,31/10/2022,PE145011,350.00,0.00,Full Page Coach Tours ad - Sept,Promotions - General,46104
Wyre Council,http://opendatacommunities.org/doc/district-council/wyre,30/10/2022,People and Places,Planning and Development Servs,132C,A T Graphics LTD,31/10/2022,PE145010,350.00,0.00,Full Page Coach Tours Ad - July,Promotions - General,46104
Wyre Council,http://opendatacommunities.org/doc/district-council/wyre,30/10/2022,People and Places,Planning and Development Servs,132C,Loop Publishing LTD,21/10/2022,PE144764,550.00,0.00,Northern Life Full page ad for FM - July/August,Promotions - General,46104
Wyre Council,http://opendatacommunities.org/doc/district-council/wyre,30/10/2022,People and Places,Planning and Development Servs,132C,Loop Publishing LTD,21/10/2022,PE144765,450.00,0.00,Full Page Advert for Fleetwood Market,Promotions - General,46104
Wyre Council,http://opendatacommunities.org/doc/district-council/wyre,30/10/2022,People and Places,Environmental Services,132B,PermiServ Ltd,07/10/2022,PE144541,562.52,0.00,"Production, postage and management of green waste subscription stickers/portal as per Lancashire agreement.Please leave PO open and it will be drawn off each month",Promotions - General,46104
Wyre Council,http://opendatacommunities.org/doc/district-council/wyre,30/10/2022,People and Places,Environmental Services,132B,PermiServ Ltd,07/10/2022,PE144527,245.00,0.00,"Production, postage and management of green waste subscription stickers/portal as per Lancashire agreement.Please leave PO open and it will be drawn off each month",Promotions - General,46104
Wyre Council,http://opendatacommunities.org/doc/district-council/wyre,30/10/2022,People and Places,Support Services,135B,Key Engineering & Hygiene Supplies LTD,19/10/2022,PE144716,47.49,0.00,"Supply 1 x TRW511 - Regatta X-Pro Exosphere II performance stretch shell jacket in black and orange - LARGE at price quoted 45.49Please add small Wyre logo to the front of the jacket, Thank you Delivery to Wyre Council, Copse Road Depot, Copse Ro",Protective Clothing,41600
Wyre Council,http://opendatacommunities.org/doc/district-council/wyre,30/10/2022,People and Places,Environmental Services,132B,Key Engineering & Hygiene Supplies LTD,21/10/2022,PE144759,122.22,0.00,"Supply and deliver as per quote 16083 6/10/2022Delivery to Wyre Council, Copse Road, Fleetwood, FY7 6RP",Protective Clothing,41600
Wyre Council,http://opendatacommunities.org/doc/district-council/wyre,30/10/2022,People and Places,Support Services,135B,Malcolm McCulloch & Sons LTD,26/10/2022,PE144956,35.00,0.00,items on invoice 254490,Protective Clothing,41600
Wyre Council,http://opendatacommunities.org/doc/district-council/wyre,30/10/2022,People and Places,Environmental Services,132B,Key Engineering & Hygiene Supplies LTD,24/10/2022,PE144832,845.50,0.00,Supply 50 boxes of BL090C1 - Blue refuse sacks @ 16.91 per 200,"Provision of Bins, Boxes and Sacks",40500
Wyre Council,http://opendatacommunities.org/doc/district-council/wyre,30/10/2022,People and Places,Environmental Services,132B,Veolia ES (UK) LTD,24/10/2022,PE144823,4584.66,0.00,Bin delivery,"Provision of Bins, Boxes and Sacks",40500
Wyre Council,http://opendatacommunities.org/doc/district-council/wyre,30/10/2022,People and Places,Cultural and Related Services,132A,Centrewire LTD,31/10/2022,PE145009,1147.00,0.00,"	5 x two way gate latch 5 x 1 way gate l",Public Footpaths/Rights Of Way,28016
Wyre Council,http://opendatacommunities.org/doc/district-council/wyre,30/10/2022,People and Places,Support Services,135B,Amazon Business,06/10/2022,PE144513,73.32,0.00,2 X DONYER POWER Electric Convector Heater 2000W Room Heater Space Heating with Adjustable Thermostathttps://www.amazon.co.uk/Convector-Radiator-Adjustable-Thermostat-Standing/dp/B0773HXND3/ref=sr_1_2_sspa?crid=14HR0Y6BM5Y8F&keywords=convector+heaters,Purchase Furniture,40300
Wyre Council,http://opendatacommunities.org/doc/district-council/wyre,30/10/2022,Finance,"Cultural, Environ and Planning",137B,,10/10/2022,WPST00077164,327627.50,0.00,reversal of - project neptune - deposit,Purchase of Land and Buildings,04002
Wyre Council,http://opendatacommunities.org/doc/district-council/wyre,30/10/2022,Finance,"Cultural, Environ and Planning",137B,,10/10/2022,WPST00077151,4717830.00,0.00,Project neptune - deposit paid on exchan,Purchase of Land and Buildings,04002
Wyre Council,http://opendatacommunities.org/doc/district-council/wyre,30/10/2022,Finance,"Cultural, Environ and Planning",137B,,10/10/2022,WPST00077153,3931525.00,0.00,Project neptune - purchase price,Purchase of Land and Buildings,04002
Wyre Council,http://opendatacommunities.org/doc/district-council/wyre,30/10/2022,People and Places,Planning and Development Servs,132C,Haymarket Media Group,17/10/2022,PE141975,-5330.00,0.00,Internal Credit note raised becasue the VAT was entered inccorrectly on the original invoice,Purchase of Publications,42302
Wyre Council,http://opendatacommunities.org/doc/district-council/wyre,30/10/2022,People and Places,Planning and Development Servs,132C,Haymarket Media Group,17/10/2022,PE141976,5330.00,0.00,Invoice re processed due to incorrect VAT,Purchase of Publications,42302
Wyre Council,http://opendatacommunities.org/doc/district-council/wyre,30/10/2022,People and Places,Planning and Development Servs,132C,Trident Rentals Ltd,07/10/2022,PE144530,489.67,0.00,rental compactor,Purchase of Tools or Equipment,40100
Wyre Council,http://opendatacommunities.org/doc/district-council/wyre,30/10/2022,People and Places,Planning and Development Servs,132C,Trident Rentals Ltd,06/10/2022,PE144526,489.67,0.00,rental compactor,Purchase of Tools or Equipment,40100
Wyre Council,http://opendatacommunities.org/doc/district-council/wyre,30/10/2022,Resources,Support Services,135B,THE FINISHING POINT (TFP) LTD,05/10/2022,RS144455,664.00,0.00,PHS 450 Laminator as discussed with Michelle Wightman,Purchase of Tools or Equipment,40100
Wyre Council,http://opendatacommunities.org/doc/district-council/wyre,30/10/2022,Resources,Environmental Services,132B,Bates Office Services Ltd,04/10/2022,RS144415,199.99,0.00,"1 - TSK/ZA Chair, Black with ArmsFor Peter Cantley, Room 125",Purchase of Tools or Equipment,40100
Wyre Council,http://opendatacommunities.org/doc/district-council/wyre,30/10/2022,Resources,Housing General Fund,134A,VODAFONE LIMITED,12/10/2022,RS143932,24.00,0.00,"Mobile Phone Charges, invoice dated August",Purchase of Tools or Equipment,40100
Wyre Council,http://opendatacommunities.org/doc/district-council/wyre,30/10/2022,Resources,Support Services,135B,Amazon Business,06/10/2022,RS143643,48.12,0.00,PIBEEX Extension Lead with USB Slots 13A 4 Way Plug Sockets with Individual Switches 2 USB Ports Extension Cord Mountable Power Strips with 2M extension cable 3250W,Purchase of Tools or Equipment,40100
Wyre Council,http://opendatacommunities.org/doc/district-council/wyre,30/10/2022,Resources,Support Services,135B,Amazon Business,06/10/2022,RS143720,38.30,0.00,Allcam FCP 3m Rubber Floor Cable Cover/Cable Protector w/Visible yellow Stripes & 15x 8 mm Cable Channel.,Purchase of Tools or Equipment,40100
Wyre Council,http://opendatacommunities.org/doc/district-council/wyre,30/10/2022,Resources,Support Services,135B,Amazon Business,06/10/2022,RS143720,48.30,0.00,Allcam FCP 5m Rubber Floor Cable Protector/Cable Cover w/Visible yellow Stripes & 15x 8 mm Cable Channel.,Purchase of Tools or Equipment,40100
Wyre Council,http://opendatacommunities.org/doc/district-council/wyre,30/10/2022,Resources,Support Services,135B,Amazon Business,06/10/2022,RS143720,28.30,0.00,Allcam FCP 2m Rubber Floor Cable Protector/Cable Cover w/Visible yellow Stripes & 15x 8 mm Cable Channel.,Purchase of Tools or Equipment,40100
Wyre Council,http://opendatacommunities.org/doc/district-council/wyre,30/10/2022,Resources,Support Services,135B,Amazon Business,05/10/2022,RS144448,5.42,0.00,YILIANDUO 4G Antenna Adapter SMA Female to TS9 Male Straight Gold-Plated Connector for 4G LTE Antenna Hsdpa Huawei 2G 3G Antenna UMTS Mobile Broadband (Adapters).,Purchase of Tools or Equipment,40100
Wyre Council,http://opendatacommunities.org/doc/district-council/wyre,30/10/2022,Resources,Support Services,135B,Amazon Business,06/10/2022,RS143642,54.98,0.00,"SMJ Electrical CTH2513 Cable Reel, 3120 W, 240 V, Black/Grey, 25 Meter",Purchase of Tools or Equipment,40100
Wyre Council,http://opendatacommunities.org/doc/district-council/wyre,30/10/2022,Resources,Support Services,135B,Amazon Business,06/10/2022,RS143642,43.32,0.00,"SMJ Electrical CT1513 Easy Wind cable reel, 3120 W, Black/Grey, 15 meter",Purchase of Tools or Equipment,40100
Wyre Council,http://opendatacommunities.org/doc/district-council/wyre,30/10/2022,Resources,Support Services,135B,Amazon Business,28/10/2022,RS144568,5.14,0.00,Magnet Experts F4MBCGW-10 Flexible Magnetic Label with Dry Wipe Surface (Pack of 10).,Purchase of Tools or Equipment,40100
Wyre Council,http://opendatacommunities.org/doc/district-council/wyre,30/10/2022,Resources,Support Services,135B,Amazon Business,28/10/2022,RS144565,140.24,0.00,"Bonsaii Heavy Duty Paper Shredder, 60-Minute 18 Sheets Cross Cut Office Credit Card Shredders for Industrial and Business Use, 23-Litre Pullout Bin with 4 Casters, Black (C149-C).",Purchase of Tools or Equipment,40100
Wyre Council,http://opendatacommunities.org/doc/district-council/wyre,30/10/2022,Resources,Environmental Services,132B,Amazon Business,18/10/2022,RS144714,114.75,0.00,"The fourth edition of Button on Taxis completely updates the text to take account of changes to legislation, case law and Guidance since the publication of the third edition. Book required to assist with decision making in relation to the licensing servic",Purchase of Tools or Equipment,40100
Wyre Council,http://opendatacommunities.org/doc/district-council/wyre,30/10/2022,Resources,Corporate and Democratic Core,131A,Amazon Business,04/10/2022,RS144433,17.45,0.00,TASCAM DR-05X Portable Audio Recorder UGREEN Mini USB Cable Braided USB 2.0 to Mini B Cable,Purchase of Tools or Equipment,40100
Wyre Council,http://opendatacommunities.org/doc/district-council/wyre,30/10/2022,Resources,Corporate and Democratic Core,131A,Amazon Business,07/10/2022,RS144519,90.83,0.00,TASCAM DR-05X Portable Audio Recorder UGREEN Mini USB Cable Braided USB 2.0 to Mini B Cable,Purchase of Tools or Equipment,40100
Wyre Council,http://opendatacommunities.org/doc/district-council/wyre,30/10/2022,People and Places,Cultural and Related Services,132A,Steve Tomlin Crafts,06/10/2022,PE143936,1190.00,0.00,scything Kits x 8,Purchase of Tools or Equipment,40100
Wyre Council,http://opendatacommunities.org/doc/district-council/wyre,30/10/2022,People and Places,Cultural and Related Services,132A,PHYLLIS DAVIES SCHOOL OF DANCING,24/10/2022,PE144619,6980.00,0.00,Refund of ticket sales - Marine Hall,Refund of Ticket Sales to Ext Promoters,46830
Wyre Council,http://opendatacommunities.org/doc/district-council/wyre,30/10/2022,People and Places,Cultural and Related Services,132A,Pink Floydian,17/10/2022,PE144646,7020.00,0.00,Refund of Ticket sales - Marine Hall 1/10/22,Refund of Ticket Sales to Ext Promoters,46830
Wyre Council,http://opendatacommunities.org/doc/district-council/wyre,30/10/2022,People and Places,Planning and Development Servs,132C,Suez Recycling And Recovery UK LTD,11/10/2022,PE144243,1430.99,0.00,waste removal market suez June 22 to March 23,Refuse Collection,27008
Wyre Council,http://opendatacommunities.org/doc/district-council/wyre,30/10/2022,People and Places,Planning and Development Servs,132C,Trident Rentals Ltd,11/10/2022,PE144521,165.80,0.00,rental compactor,Refuse Collection,27008
Wyre Council,http://opendatacommunities.org/doc/district-council/wyre,30/10/2022,People and Places,Environmental Services,132B,Veolia ES (UK) LTD,24/10/2022,PE144823,185737.57,0.00,Domestic Waste Management Collection Contract 2022/23,Refuse Collection Contract,27009
Wyre Council,http://opendatacommunities.org/doc/district-council/wyre,30/10/2022,People and Places,Environmental Services,132B,Veolia ES (UK) LTD,24/10/2022,PE144823,2018.52,0.00,Pension pass through,Refuse Collection Contract,27009
Wyre Council,http://opendatacommunities.org/doc/district-council/wyre,30/10/2022,People and Places,Public Transport,133G,Andrew Signs LTD,12/10/2022,PE144603,325.00,0.00,payment in full of invoice INV-1299,Repairs to Non-WBC Buildings,21004
Wyre Council,http://opendatacommunities.org/doc/district-council/wyre,30/10/2022,People and Places,Public Transport,133G,Andrew Signs LTD,26/10/2022,PE144953,151.67,0.00,100 x screw banding fixings,Repairs to Non-WBC Buildings,21004
Wyre Council,http://opendatacommunities.org/doc/district-council/wyre,30/10/2022,People and Places,Planning and Development Servs,132C,PDM INDUSTRIES T/A PETE MARQUIS CONTRACTORS,27/10/2022,PE144965,7500.00,0.00,"To demolish and clear fire damaged building at 238 Poulton road, Fleetwood",Repairs to Non-WBC Buildings,21004
Wyre Council,http://opendatacommunities.org/doc/district-council/wyre,30/10/2022,People and Places,Support Services,135B,EAS Electrical Mechanical,13/10/2022,PE144643,389.91,0.00,Civic Centre: wired x2 additional sockets fed via existing socket room using YT2,Responsive Building Maintenance,21002
Wyre Council,http://opendatacommunities.org/doc/district-council/wyre,30/10/2022,People and Places,Planning and Development Servs,132C,EAS Electrical Mechanical,13/10/2022,PE144641,295.49,0.00,Fleetwood Market: supply and fit 5 toilet seats,Responsive Building Maintenance,21002
Wyre Council,http://opendatacommunities.org/doc/district-council/wyre,30/10/2022,People and Places,Planning and Development Servs,132C,EAS Electrical Mechanical,13/10/2022,PE144666,323.72,0.00,Fleetwood Market: replaced faulty disabled alarm system. Replaced 1 x 2ft led tube un unit 51,Responsive Building Maintenance,21002
Wyre Council,http://opendatacommunities.org/doc/district-council/wyre,30/10/2022,People and Places,Support Services,135B,EAS Electrical Mechanical,04/10/2022,PE144447,295.16,0.00,Isolate hot and cold feeds and replace 3 x faulty taps at Civic Centre,Responsive Building Maintenance,21002
Wyre Council,http://opendatacommunities.org/doc/district-council/wyre,30/10/2022,People and Places,Planning and Development Servs,132C,EAS Electrical Mechanical,13/10/2022,PE144642,322.26,0.00,Copse Road: Replaced x 3 6ft vaporproof fluorescent with LED Vapourproof,Responsive Building Maintenance,21002
Wyre Council,http://opendatacommunities.org/doc/district-council/wyre,30/10/2022,Resources,Cultural and Related Services,132A,EAS Electrical Mechanical,25/10/2022,RS143346,1025.90,0.00,supply and fit switched sockets to outdoor classroom,Responsive Building Maintenance,21002
Wyre Council,http://opendatacommunities.org/doc/district-council/wyre,30/10/2022,People and Places,Cultural and Related Services,132A,COWLEY FIRE,06/10/2022,PE144322,218.07,0.00,"Marsh Mill Windmill, Thornton, FY5 4JZ: service fire equipment",Responsive Building Maintenance,21002
Wyre Council,http://opendatacommunities.org/doc/district-council/wyre,30/10/2022,Resources,Housing General Fund,134A,The Regenda Group,26/10/2022,RS144949,2220.53,0.00,REDACT,Rough Sleeper Project/NSNO,46846
Wyre Council,http://opendatacommunities.org/doc/district-council/wyre,30/10/2022,Resources,Housing General Fund,134A,P & C Properties,21/10/2022,RS144736,300.00,0.00,REDACT,Rough Sleeper Project/NSNO,46846
Wyre Council,http://opendatacommunities.org/doc/district-council/wyre,30/10/2022,Resources,Housing General Fund,134A,P & C Properties,21/10/2022,RS144737,823.32,0.00,REDACT,Rough Sleeper Project/NSNO,46846
Wyre Council,http://opendatacommunities.org/doc/district-council/wyre,30/10/2022,Resources,Housing General Fund,134A,Neil Warburton t/a Wyre Carpets,24/10/2022,RS144821,1125.00,0.00,REDACT,Rough Sleeper Project/NSNO,46846
Wyre Council,http://opendatacommunities.org/doc/district-council/wyre,30/10/2022,Resources,Support Services,135B,Idox Software LTD,12/10/2022,RS143982,281.25,0.00,Professional Services: Mobile Apps Admin Training 10% discount applied off the package for a PO in July,Software Maintenance,43604
Wyre Council,http://opendatacommunities.org/doc/district-council/wyre,30/10/2022,Resources,Support Services,135B,Idox Software LTD,12/10/2022,RS143982,1282.50,0.00,Professional Services: Project Management 10% discount applied off the package for a PO in July,Software Maintenance,43604
Wyre Council,http://opendatacommunities.org/doc/district-council/wyre,30/10/2022,Resources,Support Services,135B,Idox Software LTD,12/10/2022,RS143982,4871.25,0.00,Software: Idox On-Site Mobile Working Apps x6 App Bundle Software Term Licence subscription (3 years) 10% discount applied off the package for a PO in July Indexation (RPI) applied from Year 2,Software Maintenance,43604
Wyre Council,http://opendatacommunities.org/doc/district-council/wyre,30/10/2022,Resources,Support Services,135B,Idox Software LTD,12/10/2022,RS143982,2565.00,0.00,Professional Services: Technical Consultancy to install x6 Apps 10% discount applied off the package for a PO in July,Software Maintenance,43604
Wyre Council,http://opendatacommunities.org/doc/district-council/wyre,30/10/2022,Resources,Support Services,135B,Civica UK LTD,18/10/2022,RS144234,284.16,0.00,Civica scan drivers Fujitsu.,Software Maintenance,43604
Wyre Council,http://opendatacommunities.org/doc/district-council/wyre,30/10/2022,Resources,Support Services,135B,Civica UK LTD,28/10/2022,RS144444,3430.00,0.00,Wyre Kofax upgrade - Consultancy Fees as per quote 16/09/2022 Civica Ref: FIN_220916_131_SS,Software Maintenance,43604
Wyre Council,http://opendatacommunities.org/doc/district-council/wyre,30/10/2022,Resources,Support Services,135B,Frontier Software PLC,24/10/2022,RS144855,14948.13,0.00,Invoice No: SIN159288,Software Maintenance,43604
Wyre Council,http://opendatacommunities.org/doc/district-council/wyre,30/10/2022,Resources,Support Services,135B,Phoenix Software LTD,10/10/2022,RS144549,143.57,0.00,Acrobat Professional - DC for teamsTeam Licensing Subscription - New - Multiple Platforms 1- 1 Month - Level 2 (10 - 49). 7 months remaining price.,Software Maintenance,43604
Wyre Council,http://opendatacommunities.org/doc/district-council/wyre,30/10/2022,Resources,Support Services,135B,Phoenix Software LTD,04/10/2022,RS144430,14521.50,0.00,VMware Horizon 8 Standard Term Edition 10 Concurrent User Pack for 1 Year term license - 25includes VMware Production Support/VMware Subscription Commercial - *Non-Returnable*- Licence,Software Maintenance,43604
Wyre Council,http://opendatacommunities.org/doc/district-council/wyre,30/10/2022,Resources,Support Services,135B,NEC Software Solutions UK Limited,03/10/2022,RS144110,1500.00,0.00,Supplier Reference - LT/CRM 136916 Revenues and Benefits Software Service Citizen Access - Addresses (CA-A) for the period 01/11/22 - 31/10/23,Software Maintenance,43604
Wyre Council,http://opendatacommunities.org/doc/district-council/wyre,30/10/2022,Resources,Support Services,135B,ASTRAL PS LTD,28/10/2022,RS144289,2850.00,0.00,"FCM up to 5 user core license, 1st October 2022 to 31st September 2023.",Software Maintenance,43604
Wyre Council,http://opendatacommunities.org/doc/district-council/wyre,30/10/2022,Resources,Support Services,135B,Crown Computing LTD,04/10/2022,RS144389,975.00,0.00,Crown monthly fee April 22 to March 23,Software Maintenance,43604
Wyre Council,http://opendatacommunities.org/doc/district-council/wyre,30/10/2022,Resources,Support Services,135B,MAINTEL EUROPE LTD,19/10/2022,RS144717,765.05,0.00,Refund of overpayment,Software Maintenance,43604
Wyre Council,http://opendatacommunities.org/doc/district-council/wyre,30/10/2022,Resources,Support Services,135B,MAINTEL EUROPE LTD,12/10/2022,RS144633,14731.79,0.00,Maintenance Renewal 2022-2023 for Mitel 3300 MXE II and Mitel Software Assurance Support.Start 21/10/22 - End 10/10/23 Response Time = Standard Mon - Friday 8am -6pm 4hr Response,Software Maintenance,43604
Wyre Council,http://opendatacommunities.org/doc/district-council/wyre,30/10/2022,People and Places,Support Services,135B,JADU CREATIVE LTD,10/10/2022,PE144564,2500.00,0.00,Change of galaxy theme functionality for Discover Wyre,Software Maintenance,43604
Wyre Council,http://opendatacommunities.org/doc/district-council/wyre,30/10/2022,Resources,Support Services,135B,Altinet Ltd,12/10/2022,RS144623,1000.00,0.00, Altinet ? Managed Phishing Simulation Service (one campaign per quarter delivered by an Altinet Technician),Software Maintenance,43604
Wyre Council,http://opendatacommunities.org/doc/district-council/wyre,30/10/2022,Finance,Support Services,135B,,28/10/2022,WPST00080708,839.93,0.00,RBLI payment 25/10,Special Maintenance - Trees,28004
Wyre Council,http://opendatacommunities.org/doc/district-council/wyre,30/10/2022,Resources,Support Services,135B,Lyreco UK LTD,06/10/2022,RS144427,32.50,0.00,A3 white paper 234406,Stationery,42200
Wyre Council,http://opendatacommunities.org/doc/district-council/wyre,30/10/2022,Resources,Support Services,135B,Lyreco UK LTD,13/10/2022,RS144420,472.00,0.00,A4 Copier Paper,Stationery,42200
Wyre Council,http://opendatacommunities.org/doc/district-council/wyre,30/10/2022,Resources,Central Services to the Public,131C,Print Image Network LTD,21/10/2022,RS144753,97.00,0.00,2022 Canvass Form 2 - Delivery of forms,Stationery,42200
Wyre Council,http://opendatacommunities.org/doc/district-council/wyre,30/10/2022,Resources,Central Services to the Public,131C,Print Image Network LTD,06/10/2022,RS144508,1127.60,0.00,2022 Canvass Mailings  - 7045  Canvass Forms laser and enclose,Stationery,42200
Wyre Council,http://opendatacommunities.org/doc/district-council/wyre,30/10/2022,Resources,Support Services,135B,THE FINISHING POINT (TFP) LTD,05/10/2022,RS144455,35.70,0.00,A3 Laminating pouches -,Stationery,42200
Wyre Council,http://opendatacommunities.org/doc/district-council/wyre,30/10/2022,People and Places,Cultural and Related Services,132A,Bates Office Services Ltd,24/10/2022,PE144814,6.44,0.00,INITIATIVE ENV DL WHT 80GSM S/S PK1000,Stationery,42200
Wyre Council,http://opendatacommunities.org/doc/district-council/wyre,30/10/2022,People and Places,Cultural and Related Services,132A,Bates Office Services Ltd,24/10/2022,PE144814,6.14,0.00,Q-CONNECT NEON QUICK NOTE 76X76MM PK12,Stationery,42200
Wyre Council,http://opendatacommunities.org/doc/district-council/wyre,30/10/2022,People and Places,Cultural and Related Services,132A,Bates Office Services Ltd,24/10/2022,PE144814,2.27,0.00,Q-CONNECT A5 SPIRAL EXEC PAD 80LF RULED,Stationery,42200
Wyre Council,http://opendatacommunities.org/doc/district-council/wyre,30/10/2022,People and Places,Cultural and Related Services,132A,Bates Office Services Ltd,24/10/2022,PE144814,0.90,0.00,INITIATIVE PP TAPE 24MMX66M CLEAR,Stationery,42200
Wyre Council,http://opendatacommunities.org/doc/district-council/wyre,30/10/2022,People and Places,Cultural and Related Services,132A,Bates Office Services Ltd,24/10/2022,PE144814,1.50,0.00,INITIATIVE STAPLES 26/6 BOX 5000,Stationery,42200
Wyre Council,http://opendatacommunities.org/doc/district-council/wyre,30/10/2022,People and Places,Cultural and Related Services,132A,Bates Office Services Ltd,24/10/2022,PE144814,1.69,0.00,Q CONNECT DUP BOOK 8.25X5 RULED FNT,Stationery,42200
Wyre Council,http://opendatacommunities.org/doc/district-council/wyre,30/10/2022,People and Places,Support Services,135B,Bates Office Services Ltd,31/10/2022,PE144918,310.34,0.00,to order all items quoted on SQ497734 . paper diaries and calenders  for 2022/  cream paper for licensing/ a3 paper for copse road / abd edding 950 white paint markers,Stationery,42200
Wyre Council,http://opendatacommunities.org/doc/district-council/wyre,30/10/2022,People and Places,Support Services,135B,Bates Office Services Ltd,03/10/2022,PE140498,40.80,0.00,Alba Arum Desk Lamp Black,Stationery,42200
Wyre Council,http://opendatacommunities.org/doc/district-council/wyre,30/10/2022,People and Places,Support Services,135B,Bates Office Services Ltd,11/10/2022,PE143778,3.28,0.00,WB ABS HALF STRIP STAPLER BLACK,Stationery,42200
Wyre Council,http://opendatacommunities.org/doc/district-council/wyre,30/10/2022,People and Places,Support Services,135B,Bates Office Services Ltd,11/10/2022,PE143778,3.28,0.00,WB BALLPEN BLACK MEDIUM 960031,Stationery,42200
Wyre Council,http://opendatacommunities.org/doc/district-council/wyre,30/10/2022,People and Places,Support Services,135B,Bates Office Services Ltd,11/10/2022,PE143778,16.88,0.00,Initiative Env C5 SSeal 90g Wh Wdw 500s,Stationery,42200
Wyre Council,http://opendatacommunities.org/doc/district-council/wyre,30/10/2022,Resources,Support Services,135B,Bates Office Services Ltd,12/10/2022,RS144598,37.50,0.00,ARTWORK A3 WHITE COPIER PAPER REAM,Stationery,42200
Wyre Council,http://opendatacommunities.org/doc/district-council/wyre,30/10/2022,Resources,Support Services,135B,Amazon Business,03/10/2022,RS144405,10.28,0.00,Combination Key Lock Box -Wall Mounted Safe Key Box,Stationery,42200
Wyre Council,http://opendatacommunities.org/doc/district-council/wyre,30/10/2022,Resources,Support Services,135B,Amazon Business,28/10/2022,RS145001,22.49,0.00,1000 tamper proof money bags,Stationery,42200
Wyre Council,http://opendatacommunities.org/doc/district-council/wyre,30/10/2022,People and Places,Current Assets,130B,Standard Fuel Oils,11/10/2022,PE140164,-42230.03,0.00,Ultra Low sulphur diesel - credit note cancels this invoice,Stock - Copse Road Fuel,01836
Wyre Council,http://opendatacommunities.org/doc/district-council/wyre,30/10/2022,People and Places,Current Assets,130B,Standard Fuel Oils,11/10/2022,PE139660,42230.03,0.00,Ultra Low sulphur diesel - credit note cancels this invoice,Stock - Copse Road Fuel,01836
Wyre Council,http://opendatacommunities.org/doc/district-council/wyre,30/10/2022,People and Places,Current Assets,130B,Standard Fuel Oils,21/10/2022,PE144039,50422.64,0.00,Diesel invoice has been credited in full,Stock - Copse Road Fuel,01836
Wyre Council,http://opendatacommunities.org/doc/district-council/wyre,30/10/2022,People and Places,Current Assets,130B,Standard Fuel Oils,21/10/2022,PE144724,49635.01,0.00,"SUPPLY 35006 LTRS OF WHITE DIESEL  DELIVERED 15/09/2022 35006 LTRS 1.4179PPL DELIVERED TO WYRE COUNCIL, COPSE ROAD DEPOT, FLEETWOOD, FY7 6RP",Stock - Copse Road Fuel,01836
Wyre Council,http://opendatacommunities.org/doc/district-council/wyre,30/10/2022,People and Places,Current Assets,130B,Standard Fuel Oils,21/10/2022,PE144723,-50422.64,0.00,Diesel invoice has been credited in full,Stock - Copse Road Fuel,01836
Wyre Council,http://opendatacommunities.org/doc/district-council/wyre,30/10/2022,Resources,Current Assets,130B,Whistl Uk Limited,05/10/2022,RS144452,358.49,0.00,Annual postage charges 01/04/2022 - 31/03/2022,Stores Purchases,01823
Wyre Council,http://opendatacommunities.org/doc/district-council/wyre,30/10/2022,Resources,Current Assets,130B,Whistl Uk Limited,05/10/2022,RS144452,43.90,0.00,Annual postage charges 01/04/2022 - 31/03/2022,Stores Purchases,01823
Wyre Council,http://opendatacommunities.org/doc/district-council/wyre,30/10/2022,Resources,Current Assets,130B,Whistl Uk Limited,25/10/2022,RS144896,313.28,0.00,Annual postage charges 01/04/2022 - 31/03/2022,Stores Purchases,01823
Wyre Council,http://opendatacommunities.org/doc/district-council/wyre,30/10/2022,Resources,Current Assets,130B,Whistl Uk Limited,21/10/2022,RS144734,272.10,0.00,Annual postage charges 01/04/2022 - 31/03/2022,Stores Purchases,01823
Wyre Council,http://opendatacommunities.org/doc/district-council/wyre,30/10/2022,Resources,Current Assets,130B,Whistl Uk Limited,21/10/2022,RS144734,5.20,0.00,Annual postage charges 01/04/2022 - 31/03/2022,Stores Purchases,01823
Wyre Council,http://opendatacommunities.org/doc/district-council/wyre,30/10/2022,Resources,Current Assets,130B,Whistl Uk Limited,11/10/2022,RS144570,350.64,0.00,Annual postage charges 01/04/2022 - 31/03/2022,Stores Purchases,01823
Wyre Council,http://opendatacommunities.org/doc/district-council/wyre,30/10/2022,Resources,Current Assets,130B,Whistl Uk Limited,11/10/2022,RS144570,35.40,0.00,Annual postage charges 01/04/2022 - 31/03/2022,Stores Purchases,01823
Wyre Council,http://opendatacommunities.org/doc/district-council/wyre,30/10/2022,Resources,Current Assets,130B,Pitney Bowes LTD  Postage By Phone,05/10/2022,RS144449,1000.00,0.00,09/09/22 Meter reset,Stores Purchases,01823
Wyre Council,http://opendatacommunities.org/doc/district-council/wyre,30/10/2022,Resources,Central Services to the Public,131C,Civica UK LTD,24/10/2022,RS144828,105.00,0.00,Xpress Work queue part 1 Online Training on 20 September 2022 1 Delegate Debra Thornton,Technical Training,17010
Wyre Council,http://opendatacommunities.org/doc/district-council/wyre,30/10/2022,Resources,Support Services,135B,Phoenix Software LTD,06/10/2022,RS144426,13500.00,0.00,M365 ADOPTION AND  CHANGE MANAGEMENT TRAINING,Technical Training,17010
Wyre Council,http://opendatacommunities.org/doc/district-council/wyre,30/10/2022,Resources,Planning and Development Servs,132C,Daisy Communications LTD,12/10/2022,RS144038,10.71,0.00,Monthly Charges for w/e  31-08-2034,Telephone - Buildings and Offices,43100
Wyre Council,http://opendatacommunities.org/doc/district-council/wyre,30/10/2022,Resources,Planning and Development Servs,132C,Daisy Communications LTD,24/10/2022,RS144730,10.71,0.00,Monthly charges for M/E 30/09/22,Telephone - Buildings and Offices,43100
Wyre Council,http://opendatacommunities.org/doc/district-council/wyre,30/10/2022,Resources,Support Services,135B,Daisy Communications LTD,12/10/2022,RS144038,2.20,0.00,Monthly Charges for w/e  31-08-2038,Telephone - Buildings and Offices,43100
Wyre Council,http://opendatacommunities.org/doc/district-council/wyre,30/10/2022,Resources,Support Services,135B,Daisy Communications LTD,24/10/2022,RS144730,2.20,0.00,Monthly charges for M/E 30/09/22,Telephone - Buildings and Offices,43100
Wyre Council,http://opendatacommunities.org/doc/district-council/wyre,30/10/2022,Resources,Cultural and Related Services,132A,Daisy Communications LTD,12/10/2022,RS144038,21.46,0.00,Monthly Charges for w/e  31-08-2025,Telephone - Buildings and Offices,43100
Wyre Council,http://opendatacommunities.org/doc/district-council/wyre,30/10/2022,Resources,Cultural and Related Services,132A,Daisy Communications LTD,24/10/2022,RS144730,21.45,0.00,Monthly charges for M/E 30/09/22,Telephone - Buildings and Offices,43100
Wyre Council,http://opendatacommunities.org/doc/district-council/wyre,30/10/2022,Resources,Cultural and Related Services,132A,Daisy Communications LTD,24/10/2022,RS144730,10.71,0.00,Monthly charges for M/E 30/09/22,Telephone - Buildings and Offices,43100
Wyre Council,http://opendatacommunities.org/doc/district-council/wyre,30/10/2022,Resources,Cultural and Related Services,132A,Daisy Communications LTD,12/10/2022,RS144038,10.71,0.00,Monthly Charges for w/e  31-08-2028,Telephone - Buildings and Offices,43100
Wyre Council,http://opendatacommunities.org/doc/district-council/wyre,30/10/2022,Resources,Cultural and Related Services,132A,Daisy Communications LTD,12/10/2022,RS144038,66.60,0.00,Monthly Charges for w/e  31-08-2029,Telephone - Buildings and Offices,43100
Wyre Council,http://opendatacommunities.org/doc/district-council/wyre,30/10/2022,Resources,Cultural and Related Services,132A,Daisy Communications LTD,24/10/2022,RS144730,66.60,0.00,Monthly charges for M/E 30/09/22,Telephone - Buildings and Offices,43100
Wyre Council,http://opendatacommunities.org/doc/district-council/wyre,30/10/2022,Resources,Cultural and Related Services,132A,Daisy Communications LTD,24/10/2022,RS144730,11.01,0.00,Monthly charges for M/E 30/09/22,Telephone - Buildings and Offices,43100
Wyre Council,http://opendatacommunities.org/doc/district-council/wyre,30/10/2022,Resources,Cultural and Related Services,132A,Daisy Communications LTD,12/10/2022,RS144038,11.00,0.00,Monthly Charges for w/e  31-08-2030,Telephone - Buildings and Offices,43100
Wyre Council,http://opendatacommunities.org/doc/district-council/wyre,30/10/2022,Resources,Environmental Services,132B,Daisy Communications LTD,12/10/2022,RS144038,32.13,0.00,Monthly Charges for w/e  31-08-2033,Telephone - Buildings and Offices,43100
Wyre Council,http://opendatacommunities.org/doc/district-council/wyre,30/10/2022,Resources,Environmental Services,132B,Daisy Communications LTD,24/10/2022,RS144730,32.13,0.00,Monthly charges for M/E 30/09/22,Telephone - Buildings and Offices,43100
Wyre Council,http://opendatacommunities.org/doc/district-council/wyre,30/10/2022,Resources,Support Services,135B,Daisy Communications LTD,24/10/2022,RS144730,10.87,0.00,Monthly charges for M/E 30/09/22,Telephone - Buildings and Offices,43100
Wyre Council,http://opendatacommunities.org/doc/district-council/wyre,30/10/2022,Resources,Support Services,135B,Daisy Communications LTD,12/10/2022,RS144038,10.71,0.00,Monthly Charges for w/e  31-08-2044,Telephone - Buildings and Offices,43100
Wyre Council,http://opendatacommunities.org/doc/district-council/wyre,30/10/2022,Resources,Support Services,135B,Daisy Communications LTD,12/10/2022,RS144038,1961.95,0.00,Monthly Charges for w/e  31-08-2045,Telephone - Buildings and Offices,43100
Wyre Council,http://opendatacommunities.org/doc/district-council/wyre,30/10/2022,Resources,Support Services,135B,Daisy Communications LTD,24/10/2022,RS144730,2052.25,0.00,Monthly charges for M/E 30/09/22,Telephone - Buildings and Offices,43100
Wyre Council,http://opendatacommunities.org/doc/district-council/wyre,30/10/2022,Resources,Cultural and Related Services,132A,Daisy Communications LTD,24/10/2022,RS144730,60.96,0.00,Monthly charges for M/E 30/09/22,Telephone - Buildings and Offices,43100
Wyre Council,http://opendatacommunities.org/doc/district-council/wyre,30/10/2022,Resources,Cultural and Related Services,132A,Daisy Communications LTD,12/10/2022,RS144038,60.95,0.00,Monthly Charges for w/e  31-08-2026,Telephone - Buildings and Offices,43100
Wyre Council,http://opendatacommunities.org/doc/district-council/wyre,30/10/2022,Resources,Planning and Development Servs,132C,Daisy Communications LTD,12/10/2022,RS144038,2.20,0.00,Monthly Charges for w/e  31-08-2037,Telephone - Buildings and Offices,43100
Wyre Council,http://opendatacommunities.org/doc/district-council/wyre,30/10/2022,Resources,Planning and Development Servs,132C,Daisy Communications LTD,24/10/2022,RS144730,2.20,0.00,Monthly charges for M/E 30/09/22,Telephone - Buildings and Offices,43100
Wyre Council,http://opendatacommunities.org/doc/district-council/wyre,30/10/2022,Resources,Cultural and Related Services,132A,Daisy Communications LTD,12/10/2022,RS144038,10.72,0.00,Monthly Charges for w/e  31-08-2023,Telephone - Buildings and Offices,43100
Wyre Council,http://opendatacommunities.org/doc/district-council/wyre,30/10/2022,Resources,Cultural and Related Services,132A,Daisy Communications LTD,24/10/2022,RS144730,10.71,0.00,Monthly charges for M/E 30/09/22,Telephone - Buildings and Offices,43100
Wyre Council,http://opendatacommunities.org/doc/district-council/wyre,30/10/2022,Resources,Cultural and Related Services,132A,Daisy Communications LTD,24/10/2022,RS144730,10.71,0.00,Monthly charges for M/E 30/09/22,Telephone - Buildings and Offices,43100
Wyre Council,http://opendatacommunities.org/doc/district-council/wyre,30/10/2022,Resources,Cultural and Related Services,132A,Daisy Communications LTD,12/10/2022,RS144038,10.72,0.00,Monthly Charges for w/e  31-08-2024,Telephone - Buildings and Offices,43100
Wyre Council,http://opendatacommunities.org/doc/district-council/wyre,30/10/2022,Resources,Cultural and Related Services,132A,Daisy Communications LTD,24/10/2022,RS144730,34.54,0.00,Monthly charges for M/E 30/09/22,Telephone - Buildings and Offices,43100
Wyre Council,http://opendatacommunities.org/doc/district-council/wyre,30/10/2022,Resources,Environmental Services,132B,Daisy Communications LTD,24/10/2022,RS144730,10.71,0.00,Monthly charges for M/E 30/09/22,Telephone - Buildings and Offices,43100
Wyre Council,http://opendatacommunities.org/doc/district-council/wyre,30/10/2022,Resources,Environmental Services,132B,Daisy Communications LTD,12/10/2022,RS144038,10.71,0.00,Monthly Charges for w/e  31-08-2032,Telephone - Buildings and Offices,43100
Wyre Council,http://opendatacommunities.org/doc/district-council/wyre,30/10/2022,Resources,Planning and Development Servs,132C,Daisy Communications LTD,12/10/2022,RS144038,0.52,0.00,Monthly Charges for w/e  31-08-2035,Telephone - Buildings and Offices,43100
Wyre Council,http://opendatacommunities.org/doc/district-council/wyre,30/10/2022,Resources,Planning and Development Servs,132C,Daisy Communications LTD,24/10/2022,RS144730,0.52,0.00,Monthly charges for M/E 30/09/22,Telephone - Buildings and Offices,43100
Wyre Council,http://opendatacommunities.org/doc/district-council/wyre,30/10/2022,Resources,Support Services,135B,Daisy Communications LTD,24/10/2022,RS144730,33.30,0.00,Monthly charges for M/E 30/09/22,Telephone - Buildings and Offices,43100
Wyre Council,http://opendatacommunities.org/doc/district-council/wyre,30/10/2022,Resources,Support Services,135B,Daisy Communications LTD,12/10/2022,RS144038,33.30,0.00,Monthly Charges for w/e  31-08-2042,Telephone - Buildings and Offices,43100
Wyre Council,http://opendatacommunities.org/doc/district-council/wyre,30/10/2022,People and Places,Support Services,135B,Poulton In Bloom Committee,05/10/2022,PE144466,914.65,0.00,Contributions towards 2022 `in Bloom`,Tourism Support,46500
Wyre Council,http://opendatacommunities.org/doc/district-council/wyre,30/10/2022,People and Places,Planning and Development Servs,132C,IBI GROUP UK LTD,10/10/2022,PE144550,10279.41,0.00,"Fees for preparing the town centre regeneration frameworks for Cleveleys, Garstang and Poulton as per your fee proposal dated 14 May 2021.",Town Centre Strategy Fund,45273
Wyre Council,http://opendatacommunities.org/doc/district-council/wyre,30/10/2022,Resources,Corporate and Democratic Core,131A,The Royal Town Planning Institute,03/10/2022,RS144404,199.00,0.00,Online CPD - Planning for Elected Members training,Training - Non HR Controlled,17012
Wyre Council,http://opendatacommunities.org/doc/district-council/wyre,30/10/2022,Resources,Corporate and Democratic Core,131A,The Royal Town Planning Institute,03/10/2022,RS144402,199.00,0.00,Online CPD - Planning for Elected Members training,Training - Non HR Controlled,17012
Wyre Council,http://opendatacommunities.org/doc/district-council/wyre,30/10/2022,Resources,Corporate and Democratic Core,131A,The Royal Town Planning Institute,03/10/2022,RS144403,199.00,0.00,Online CPD - Planning for Elected Members training,Training - Non HR Controlled,17012
Wyre Council,http://opendatacommunities.org/doc/district-council/wyre,30/10/2022,People and Places,Cultural and Related Services,132A,Steve Tomlin Crafts,06/10/2022,PE143936,1286.00,0.00,scythe training + travel expenses,Training - Non HR Controlled,17012
Wyre Council,http://opendatacommunities.org/doc/district-council/wyre,30/10/2022,People and Places,Support Services,135B,The County Tyre (Holdings) LTD,13/10/2022,PE144668,755.70,0.00,6 x yokohama ry55 115r,Tyres,30503
Wyre Council,http://opendatacommunities.org/doc/district-council/wyre,30/10/2022,People and Places,Planning and Development Servs,132C,Key Engineering & Hygiene Supplies LTD,04/10/2022,PE144431,16.31,0.00,SEALTEX TROUSERS SIZE XL NAVY,Uniforms,41500
Wyre Council,http://opendatacommunities.org/doc/district-council/wyre,30/10/2022,People and Places,Planning and Development Servs,132C,Key Engineering & Hygiene Supplies LTD,31/10/2022,PE145015,476.99,0.00,charger for nilfisk scrubber drier,Uniforms,41500
Wyre Council,http://opendatacommunities.org/doc/district-council/wyre,30/10/2022,People and Places,Planning and Development Servs,132C,Key Engineering & Hygiene Supplies LTD,13/10/2022,PE144667,13.14,0.00,Charcoal fleece Small,Uniforms,41500
Wyre Council,http://opendatacommunities.org/doc/district-council/wyre,30/10/2022,People and Places,Planning and Development Servs,132C,Key Engineering & Hygiene Supplies LTD,13/10/2022,PE144667,39.42,0.00,3 X BLACK FLEECE.      1 @  SIZE SMALL                                        1 @       SIZE 1 XL                                        1 @           SIZE 2 XL,Uniforms,41500
Wyre Council,http://opendatacommunities.org/doc/district-council/wyre,30/10/2022,People and Places,Planning and Development Servs,132C,Key Engineering & Hygiene Supplies LTD,13/10/2022,PE144667,8.00,0.00,EMBROIDERED LOGO FOR WYRE COUNCIL,Uniforms,41500
Wyre Council,http://opendatacommunities.org/doc/district-council/wyre,30/10/2022,People and Places,Planning and Development Servs,132C,Key Engineering & Hygiene Supplies LTD,13/10/2022,PE144667,27.94,0.00,SEALTEX  JACKET NAVY XL,Uniforms,41500
Wyre Council,http://opendatacommunities.org/doc/district-council/wyre,30/10/2022,People and Places,Environmental Services,132B,M J Wilkinson,26/10/2022,PE144948,473.12,0.00,hire of Hitachi ZX130 and labour,Vehicle Hire,32000
Wyre Council,http://opendatacommunities.org/doc/district-council/wyre,30/10/2022,People and Places,Cultural and Related Services,132A,Miles Bramwell Admin Services T/A Slimming World,26/10/2022,PE142397,5475.00,0.00,Places on the Wyre Weight Management programme for 2022/23 at 15 for week 1 and 5 for weeks 2-12 for each participant.,Weight Management Programme,46905
Wyre Council,http://opendatacommunities.org/doc/district-council/wyre,30/10/2022,People and Places,Cultural and Related Services,132A,Miles Bramwell Admin Services T/A Slimming World,24/10/2022,PE144850,4325.00,0.00,Places on the Wyre Weight Management programme for 2022/23 at 15 for week 1 and 5 for weeks 2-12 for each participant.,Weight Management Programme,46905
Wyre Council,http://opendatacommunities.org/doc/district-council/wyre,30/10/2022,Resources,Cultural and Related Services,132A,Healthy Heads Education Ltd,24/10/2022,RS144825,1667.00,0.00,"PASTA programme delivery in Wyre for 2022/23. 1,667 per 6 week course. Delivery at Larkholme and Chaucer primary schools.",Weight Management Programme,46905
